Workbook

Sheet 在职行员 (hidden)
A1: 附件1
A2: 湟源县支行在职行员工资待遇（全口径）明细表
A4: 填报单位：人民银行湟源县支行（章） | I4: 市分行： (盖章） | R4: 监管分局： (盖章） | AA4: 省分行： (盖章） | AI4: 监管局： (盖章）
A5: 支行主要负责人： （签字） | I5: 市分行主要负责人： （签字） | R5: 监管分局主要负责人： （签字） | AA5: 省分行主要负责人： （签字） | AI5: 监管局主要负责人： （签字）
AQ6: 单位：元
A7: 序号 | B7: 姓名 | C7: 身 份 证 号 | D7: 出 生 年 月 | E7: 职务 | F7: 职称 | G7: 填报月份 | H7: 全口径工资待遇应发项目 | U7: 公务用车改革补贴 | V7: 其他实发待遇项目（如有） | W7: 工资个人扣款项目 | AG7: 实发待遇 | AH7: 单位缴款项目 | AR7: 备注
H8: 岗位工资 | I8: 薪级工资 | J8: 基础绩效工资 | K8: 月度奖励绩效 （奖励性工资） | L8: 季度/半年度/年度发放项目 | M8: 规范津贴补贴 | N8: 住房补贴 | O8: 其他项目小计 | T8: 应发合计 | W8: 养老保险统筹 | X8: 职业年金缴费 | Y8: 医疗保险 | Z8: 公务员补充医疗 （如有） | AA8: 大病、重疾 （如有） | AB8: 工会费（如有） | AC8: 住房公积金 | AD8: 个人所得税 | AE8: 其他项目 （具体名称） | AF8: 代扣代缴合计 | AH8: 养老保险统筹 | AI8: 职业年金缴费 | AJ8: 医疗保险 | AK8: 公务员补充医疗 （如有） | AL8: 大病、重疾 （如有） | AM8: 生育保险 | AN8: 工伤保险 | AO8: 住房公积金 | AP8: 退休一次性补缴医保 | AQ8: 单位缴款项目合计
P9: 取暖费 | Q9: 其他项目2（具体名称） | R9: 其他项目3 （具体名称） | S9: 其余项目小计
A10: 列 | H10: 1 | I10: 2 | J10: 3 | K10: 4 | L10: 5 | M10: 6 | N10: 7 | O10: 8=9+…+12 | P10: 9 | Q10: 10 | R10: 11 | S10: 12 | T10: 13=1+…+8 | U10: 14 | V10: 15 | W10: 16 | X10: 17 | Y10: 18 | Z10: 19 | AA10: 20 | AB10: 21 | AC10: 22 | AD10: 23 | AE10: 24 | AF10: 25=16+…+24 | AG10: 26=13+14+15-25 | AH10: 27 | AI10: 28 | AJ10: 29 | AK10: 30 | AL10: 31 | AM10: 32 | AN10: 33 | AO10: 34 | AP10: 35 | AQ10: 36=27+…+35 | AR10: 37
A11: 支行在职行员工资待遇总计 | G11: 汇总数 | H11: =H24+H38+H52+H66+H80+H94+H108+H122+H136+H150+H164+H178+H192+H206+H220+H234+H248+H262+H276+H290+H304+H318 -> 418380 | I11: 341957 | J11: 358034 | K11: 504335 | M11: =M24+M38+M52+M66+M80+M94+M108+M122+M136+M150+M164+M178+M192+M206+M220+M234+M248+M262+M276+M290+M304+M318 -> 865345 | N11: =N24+N38+N52+N66+N80+N94+N108+N122+N136+N150+N164+N178+N192+N206+N220+N234+N248+N262+N276+N290+N304+N318 -> 133584.2 | T11: =T24+T38+T52+T66+T80+T94+T108+T122+T136+T150+T164+T178+T192+T206+T220+T234+T248+T262+T276+T290+T304+T318 -> 2679079.2 | U11: 163400 | W11: =W24+W38+W52+W66+W80+W94+W108+W122+W136+W150+W164+W178+W192+W206+W220+W234+W248+W262+W276+W290+W304+W318 -> 222123.04 | X11: 111061.52 | Y11: 34435.14 | AC11: =AC24+AC38+AC52+AC66+AC80+AC94+AC108+AC122+AC136+AC150+AC164+AC178+AC192+AC206+AC220+AC234+AC248+AC262+AC276+AC290+AC304+AC318 -> 314694 | AD11: 14865.17 | AF11: =AF24+AF38+AF52+AF66+AF80+AF94+AF108+AF122+AF136+AF150+AF164+AF178+AF192+AF206+AF220+AF234+AF248+AF262+AF276+AF290+AF304+AF318 -> 697178.87 | AG11: 2145300.33 | AH11: 444246.08 | AJ11: =AJ24+AJ38+AJ52+AJ66+AJ80+AJ94+AJ108+AJ122+AJ136+AJ150+AJ164+AJ178+AJ192+AJ206+AJ220+AJ234+AJ248+AJ262+AJ276+AJ290+AJ304+AJ318 -> 210342.6 | AM11: =AM24+AM38+AM52+AM66+AM80+AM94+AM108+AM122+AM136+AM150+AM164+AM178+AM192+AM206+AM220+AM234+AM248+AM262+AM276+AM290+AM304+AM318 -> 15020.851 | AO11: =AO24+AO38+AO52+AO66+AO80+AO94+AO108+AO122+AO136+AO150+AO164+AO178+AO192+AO206+AO220+AO234+AO248+AO262+AO276+AO290+AO304+AO318 -> 314694 | AP11: 0 | AQ11: 984303.531
A12: 1 | B12: 汪进 | C12: 632124197005220019 | D12: 1970.5 | E12: 党组书记、行长 | F12: 中级经济师10级 | G12: 2023-01-01 | H12: 2240 | I12: 2545 | J12: 2414 | K12: 2420 | M12: 3765 | N12: 669.2 | T12: =H12+I12+J12+K12+L12+M12+N12+O12 -> 14053.2 | U12: 750 | W12: 1133.12 | X12: 566.56 | Y12: 217.54 | AC12: 1582 | AD12: 156.41 | AF12: =W12+X12+Y12+AB12+AC12+AD12 -> 3655.63 | AG12: =T12+U12+V12-AF12 -> 11147.57 | AH12: =W12*2 -> 2266.24 | AJ12: 508.62 | AM12: 76.293 | AO12: =AC12 -> 1582 | AQ12: =AH12+AI12+AJ12+AK12+AL12+AM12+AN12+AO12+AP12 -> 4433.153
G13: 2023-02-01 | H13: 2240 | I13: 2545 | J13: 2414 | K13: 2420 | M13: 3765 | N13: 669.2 | T13: 14053.2 | U13: 750 | W13: 1133.12 | X13: 566.56 | Y13: 169.54 | AC13: 1582 | AD13: 81.98 | AF13: 3533.2 | AG13: 11270 | AH13: 2266.24 | AJ13: =Y13*3 -> 508.62 | AM13: =Y13/0.02*0.009 -> 76.293 | AO13: 1582 | AQ13: 4433.153
G14: 2023-03-01 | H14: 2240 | I14: 2875 | J14: 2414 | K14: 2420 | M14: 3765 | N14: 669.2 | T14: 14383.2 | U14: 750 | W14: 1133.12 | X14: 566.56 | Y14: 169.54 | AC14: 1582 | AD14: 81.98 | AF14: 3533.2 | AG14: 11600 | AH14: 2266.24 | AJ14: 508.62 | AM14: 76.293 | AO14: 1582 | AQ14: 4433.153
G15: 2023-04-01 | H15: 2240 | I15: 2875 | J15: 2414 | K15: 2420 | M15: 3765 | N15: 669.2 | T15: 14383.2 | U15: 750 | W15: 1133.12 | X15: 566.56 | Y15: 169.54 | AC15: 1582 | AD15: 81.98 | AF15: 3533.2 | AG15: 11600 | AH15: 2266.24 | AJ15: 508.62 | AM15: 76.293 | AO15: 1582 | AQ15: 4433.153
G16: 2023-05-01 | H16: 2240 | I16: 2875 | J16: 2414 | K16: 2420 | M16: 3765 | N16: 669.2 | T16: 14383.2 | U16: 750 | W16: 1133.12 | X16: 566.56 | Y16: 169.54 | AC16: 1582 | AD16: 0 | AF16: 3451.22 | AG16: 11681.98 | AH16: 2266.24 | AJ16: 508.62 | AM16: 76.293 | AO16: 1582 | AQ16: 4433.153
G17: 2023-06-01 | H17: 2240 | I17: 3572 | J17: 2414 | K17: 2425 | M17: 3765 | N17: 669.2 | T17: 15085.2 | U17: 750 | W17: 1133.12 | X17: 566.56 | Y17: 169.54 | AC17: 1582 | AD17: 163.97 | AF17: 3615.19 | AG17: 12220.01 | AH17: 2266.24 | AJ17: 508.62 | AM17: 76.293 | AO17: 1582 | AQ17: 4433.153
G18: 2023-07-01 | H18: 2240 | I18: 2987 | J18: 2414 | K18: 2425 | M18: 3765 | N18: 669.2 | T18: 14500.2 | U18: 750 | W18: 1133.12 | X18: 566.56 | Y18: 185.22 | AC18: 1582 | AD18: 81.98 | AF18: 3548.88 | AG18: 11701.32 | AH18: 2266.24 | AJ18: 555.66 | AM18: 83.59 | AO18: 1582 | AQ18: 4487.49
G19: 2023-08-01 | H19: 2240 | I19: 2654 | J19: 2414 | K19: 2425 | M19: 3765 | N19: 669.2 | T19: 14167.2 | U19: 750 | W19: 1133.12 | X19: 566.56 | Y19: 171.78 | AC19: 1582 | AD19: 81.98 | AF19: 3535.44 | AG19: 11381.76 | AH19: 2266.24 | AJ19: 515.34 | AM19: =Y19/0.02*0.009 -> 77.301 | AO19: 1582 | AQ19: 4440.881
G20: 2023-09-01 | H20: 2240 | I20: 2654 | J20: 2414 | K20: 2425 | M20: 3765 | N20: 669.2 | T20: 14167.2 | U20: 750 | W20: 1133.12 | X20: 566.56 | Y20: 171.78 | AC20: 1582 | AD20: 0 | AF20: 3453.46 | AG20: 11463.74 | AH20: 2266.24 | AJ20: 515.34 | AM20: 77.301 | AO20: 1582 | AQ20: 4440.881
G21: 2023-10-01 | H21: 2240 | I21: 2654 | J21: 2414 | K21: 2425 | M21: 3765 | N21: 669.2 | T21: 14167.2 | U21: 750 | W21: 1133.12 | X21: 566.56 | Y21: 171.78 | AC21: 1582 | AD21: 0 | AF21: 3453.46 | AG21: 11463.74 | AH21: 2266.24 | AJ21: 515.34 | AM21: 77.301 | AO21: 1582 | AQ21: 4440.881
G22: 2023-11-01 | H22: 2240 | I22: 2654 | J22: 2414 | K22: 2425 | M22: 7665 | N22: 669.2 | T22: 18067.2 | U22: 750 | W22: 1133.12 | X22: 566.56 | Y22: 171.78 | AC22: 1582 | AD22: 66.98 | AF22: 3520.44 | AG22: 15296.76 | AH22: 2266.24 | AJ22: 515.34 | AM22: 77.301 | AO22: 1582 | AQ22: 4440.881
G23: 2023-12-01 | H23: 0 | I23: 0 | J23: 0 | K23: 2425 | M23: 200 | N23: 669.2 | T23: 3294.2 | U23: 750 | W23: 1133.12 | X23: 566.56 | Y23: 171.78 | AC23: 1582 | AD23: 66.99 | AF23: 3520.45 | AG23: 523.75 | AH23: 2266.24 | AJ23: 515.34 | AM23: 77.301 | AO23: 1582 | AQ23: 4440.881
G24: 汇总数 | H24: =SUM(H12:H23) -> 24640 | I24: 0 | J24: 0 | K24: =SUM(K12:K23) -> 29075 | L24: 0 | M24: 45515 | N24: 8030.4 | T24: =SUM(T12:T23) -> 164704.4 | U24: 9000 | W24: =SUM(W12:W23) -> 13597.44 | X24: 6798.72 | Y24: 2109.36 | AC24: =SUM(AC12:AC23) -> 18984 | AD24: 864.25 | AF24: =SUM(AF12:AF23) -> 42353.77 | AG24: 131350.63 | AH24: 27194.88 | AJ24: =SUM(AJ12:AJ23) -> 6184.08 | AM24: =SUM(AM12:AM23) -> 927.853 | AO24: =SUM(AO12:AO23) -> 18984 | AQ24: =SUM(AQ12:AQ23) -> 53290.813
G25: 月平均 | H25: =H24/12 -> 2053.333333 | I25: 0 | J25: 0 | K25: =K24/12 -> 2422.916667 | L25: 0 | M25: 3792.916667 | N25: 669.2 | T25: =T24/12 -> 13725.36667 | U25: 750 | W25: =W24/12 -> 1133.12 | X25: 566.56 | Y25: 175.78 | AC25: =AC24/12 -> 1582 | AD25: 72.02083333 | AF25: =AF24/12 -> 3529.480833 | AG25: 10945.88583 | AH25: 2266.24 | AJ25: =AJ24/12 -> 515.34 | AM25: =AM24/12 -> 77.32108333 | AO25: =AO24/12 -> 1582 | AQ25: =AQ24/12 -> 4440.901083
A26: 2 | B26: 金 海 | C26: 630121197106053116 | D26: 1971.6 | E26: 党组成员、纪检组长 | F26: 无 | G26: 2023-01-01 | H26: 1960 | I26: 0 | J26: 0 | K26: 2410 | M26: 3825 | N26: 634.7 | T26: =H26+I26+J26+K26+L26+M26+N26+O26 -> 8829.7 | U26: 700 | W26: 1072.8 | X26: 536.4 | Y26: 199.3 | AC26: 1499 | AD26: 514.72 | AF26: =W26+X26+Y26+AB26+AC26+AD26 -> 3822.22 | AG26: =T26+U26+V26-AF26 -> 5707.48 | AH26: =W26*2 -> 2145.6 | AJ26: 453.9 | AM26: 68.085 | AO26: =AC26 -> 1499 | AQ26: =AH26+AI26+AJ26+AK26+AL26+AM26+AN26+AO26+AP26 -> 4166.585
G27: 2023-02-01 | H27: 1960 | I27: 0 | J27: 0 | K27: 2410 | M27: 3825 | N27: 634.7 | T27: 8829.7 | U27: 700 | W27: 1072.8 | X27: 536.4 | Y27: 151.3 | AC27: 1499 | AD27: 103.64 | AF27: 3363.14 | AG27: 6166.56 | AH27: 2145.6 | AJ27: =Y27*3 -> 453.9 | AM27: =Y27/0.02*0.009 -> 68.085 | AO27: 1499 | AQ27: 4166.585
G28: 2023-03-01 | H28: 1960 | I28: 0 | J28: 0 | K28: 2410 | M28: 3825 | N28: 634.7 | T28: 8829.7 | U28: 700 | W28: 1072.8 | X28: 536.4 | Y28: 151.3 | AC28: 1499 | AD28: 103.64 | AF28: 3363.14 | AG28: 6166.56 | AH28: 2145.6 | AJ28: 453.9 | AM28: 68.085 | AO28: 1499 | AQ28: 4166.585
G29: 2023-04-01 | H29: 1960 | I29: 0 | J29: 0 | K29: 2410 | M29: 3825 | N29: 634.7 | T29: 8829.7 | U29: 700 | W29: 1072.8 | X29: 536.4 | Y29: 151.3 | AC29: 1499 | AD29: 103.64 | AF29: 3363.14 | AG29: 6166.56 | AH29: 2145.6 | AJ29: 453.9 | AM29: 68.085 | AO29: 1499 | AQ29: 4166.585
G30: 2023-05-01 | H30: 1960 | I30: 0 | J30: 0 | K30: 2410 | M30: 3825 | N30: 634.7 | T30: 8829.7 | U30: 700 | W30: 1072.8 | X30: 536.4 | Y30: 151.3 | AC30: 1499 | AF30: 3259.5 | AG30: 6270.2 | AH30: 2145.6 | AJ30: 453.9 | AM30: 68.085 | AO30: 1499 | AQ30: 4166.585
G31: 2023-06-01 | H31: 1960 | I31: 0 | J31: 0 | K31: 2415 | M31: 3825 | N31: 634.7 | T31: 8834.7 | U31: 700 | W31: 1072.8 | X31: 536.4 | Y31: 151.3 | AC31: 1499 | AD31: 207.27 | AF31: 3466.77 | AG31: 6067.93 | AH31: 2145.6 | AJ31: 453.9 | AM31: 68.085 | AO31: 1499 | AQ31: 4166.585
G32: 2023-07-01 | H32: 1960 | I32: 0 | J32: 0 | K32: 2415 | M32: 3825 | N32: 634.7 | T32: 8834.7 | U32: 700 | W32: 1072.8 | X32: 536.4 | Y32: 205.76 | AC32: 1499 | AD32: 103.63 | AF32: 3417.59 | AG32: 6117.11 | AH32: 2145.6 | AJ32: 617.28 | AM32: 92.592 | AO32: 1499 | AQ32: 4354.472
G33: 2023-08-01 | H33: 1960 | I33: 0 | J33: 0 | K33: 2415 | M33: 3825 | N33: 634.7 | T33: 8834.7 | U33: 700 | W33: 1072.8 | X33: 536.4 | Y33: 159.08 | AC33: 1499 | AD33: 103.64 | AF33: 3370.92 | AG33: 6163.78 | AH33: 2145.6 | AJ33: 477.24 | AM33: 71.586 | AO33: 1499 | AQ33: 4193.426
G34: 2023-09-01 | H34: 1960 | I34: 0 | J34: 0 | K34: 2415 | M34: 3825 | N34: 634.7 | T34: 8834.7 | U34: 700 | W34: 1072.8 | X34: 536.4 | Y34: 159.08 | AC34: 1499 | AD34: 0 | AF34: 3267.28 | AG34: 6267.42 | AH34: 2145.6 | AJ34: 477.24 | AM34: 71.586 | AO34: 1499 | AQ34: 4193.426
G35: 2023-10-01 | H35: 1960 | I35: 0 | J35: 0 | K35: 2415 | M35: 3825 | N35: 634.7 | T35: 8834.7 | U35: 700 | W35: 1072.8 | X35: 536.4 | Y35: 159.08 | AC35: 1499 | AF35: 3267.28 | AG35: 6267.42 | AH35: 2145.6 | AJ35: 477.24 | AM35: 71.586 | AO35: 1499 | AQ35: 4193.426
G36: 2023-11-01 | H36: 1960 | I36: 0 | J36: 0 | K36: 2415 | M36: 7725 | N36: 634.7 | T36: 12734.7 | U36: 700 | W36: 1072.8 | X36: 536.4 | Y36: 159.08 | AC36: 1499 | AD36: 88.63 | AF36: 3355.91 | AG36: 10078.79 | AH36: 2145.6 | AJ36: 477.24 | AM36: 71.586 | AO36: 1499 | AQ36: 4193.426
G37: 2023-12-01 | H37: 0 | I37: 0 | J37: 0 | K37: 2415 | M37: 420 | N37: 634.7 | T37: 3469.7 | U37: 700 | W37: 1072.8 | X37: 536.4 | Y37: 159.08 | AC37: 1499 | AD37: 88.64 | AF37: 3355.92 | AG37: 813.78 | AH37: 2145.6 | AJ37: 477.24 | AM37: 71.586 | AO37: 1499 | AQ37: 4193.426
G38: 汇总数 | H38: =SUM(H26:H37) -> 21560 | I38: 0 | J38: 0 | K38: =SUM(K26:K37) -> 28955 | L38: 0 | M38: 46395 | N38: 7616.4 | T38: =SUM(T26:T37) -> 104526.4 | U38: 8400 | W38: =SUM(W26:W37) -> 12873.6 | X38: 6436.8 | Y38: 1956.96 | AC38: =SUM(AC26:AC37) -> 17988 | AD38: 1417.45 | AF38: =SUM(AF26:AF37) -> 40672.81 | AG38: 72253.59 | AH38: 25747.2 | AJ38: =SUM(AJ26:AJ37) -> 5726.88 | AM38: =SUM(AM26:AM37) -> 859.032 | AO38: =SUM(AO26:AO37) -> 17988 | AQ38: =SUM(AQ26:AQ37) -> 50321.112
G39: 月平均 | H39: =H38/12 -> 1796.666667 | I39: 0 | J39: 0 | K39: =K38/12 -> 2412.916667 | L39: 0 | M39: 3866.25 | N39: 634.7 | T39: =T38/12 -> 8710.533333 | U39: 700 | W39: =W38/12 -> 1072.8 | X39: 536.4 | Y39: 163.08 | AC39: =AC38/12 -> 1499 | AD39: 118.1208333 | AF39: =AF38/12 -> 3389.400833 | AG39: 6021.1325 | AH39: 2145.6 | AJ39: =AJ38/12 -> 477.24 | AM39: =AM38/12 -> 71.586 | AO39: =AO38/12 -> 1499 | AQ39: =AQ38/12 -> 4193.426
A40: 3 | B40: 李呈春 | C40: 632621196603030411 | D40: 1966.3 | E40: 党组成员、副行长 | F40: 助理会计师12级 | G40: 2023-01-01 | H40: 1960 | I40: 0 | J40: 0 | K40: 2445 | M40: 3650 | N40: 692.3 | T40: =H40+I40+J40+K40+L40+M40+N40+O40 -> 8747.3 | U40: 700 | W40: 1153.28 | X40: 576.64 | Y40: 220.36 | AC40: 1638 | AD40: 544.45 | AF40: =W40+X40+Y40+AB40+AC40+AD40 -> 4132.73 | AG40: =T40+U40+V40-AF40 -> 5314.57 | AH40: =W40*2 -> 2306.56 | AJ40: 517.08 | AM40: 77.562 | AO40: =AC40 -> 1638 | AQ40: =AH40+AI40+AJ40+AK40+AL40+AM40+AN40+AO40+AP40 -> 4539.202
G41: 2023-02-01 | H41: 1960 | I41: 0 | J41: 0 | K41: 2445 | M41: 3650 | N41: 692.3 | T41: 8747.3 | U41: 700 | W41: 1153.28 | X41: 576.64 | Y41: 172.36 | AC41: 1638 | AD41: 123.17 | AF41: 3663.45 | AG41: 5783.85 | AH41: 2306.56 | AJ41: =Y41*3 -> 517.08 | AM41: =Y41/0.02*0.009 -> 77.562 | AO41: 1638 | AQ41: 4539.202
G42: 2023-03-01 | H42: 1960 | I42: 0 | J42: 0 | K42: 2445 | M42: 3650 | N42: 692.3 | T42: 8747.3 | U42: 700 | W42: 1153.28 | X42: 576.64 | Y42: 172.36 | AC42: 1638 | AD42: 123.17 | AF42: 3663.45 | AG42: 5783.85 | AH42: 2306.56 | AJ42: 517.08 | AM42: 77.562 | AO42: 1638 | AQ42: 4539.202
G43: 2023-04-01 | H43: 1960 | I43: 0 | J43: 0 | K43: 2445 | M43: 3650 | N43: 692.3 | T43: 8747.3 | U43: 700 | W43: 1153.28 | X43: 576.64 | Y43: 172.36 | AC43: 1638 | AD43: 123.17 | AF43: 3663.45 | AG43: 5783.85 | AH43: 2306.56 | AJ43: 517.08 | AM43: 77.562 | AO43: 1638 | AQ43: 4539.202
G44: 2023-05-01 | H44: 1960 | I44: 0 | J44: 0 | K44: 2445 | M44: 3650 | N44: 692.3 | T44: 8747.3 | U44: 700 | W44: 1153.28 | X44: 576.64 | Y44: 172.36 | AC44: 1638 | AF44: 3540.28 | AG44: 5907.02 | AH44: 2306.56 | AJ44: 517.08 | AM44: 77.562 | AO44: 1638 | AQ44: 4539.202
G45: 2023-06-01 | H45: 1960 | I45: 4195 | J45: 2335 | K45: 2450 | M45: 3650 | N45: 692.3 | T45: 15282.3 | U45: 700 | W45: 1153.28 | X45: 576.64 | Y45: 172.36 | AC45: 1638 | AD45: 246.35 | AF45: 3786.63 | AG45: 12195.67 | AH45: 2306.56 | AJ45: 517.08 | AM45: 77.562 | AO45: 1638 | AQ45: 4539.202
G46: 2023-07-01 | H46: 1960 | I46: 3575 | J46: 2335 | K46: 2450 | M46: 3650 | N46: 692.3 | T46: 14662.3 | U46: 700 | W46: 1153.28 | X46: 576.64 | Y46: 229.48 | AC46: 1638 | AD46: 123.17 | AF46: 3720.57 | AG46: 11641.73 | AH46: 2306.56 | AJ46: 688.44 | AM46: 103.266 | AO46: 1638 | AQ46: 4736.266
G47: 2023-08-01 | H47: 1960 | I47: 3575 | J47: 2335 | K47: 2450 | M47: 3650 | N47: 692.3 | T47: 14662.3 | U47: 700 | W47: 1153.28 | X47: 576.64 | Y47: 180.52 | AC47: 1638 | AD47: 123.17 | AF47: 3671.61 | AG47: 11690.69 | AH47: 2306.56 | AJ47: 541.56 | AM47: 81.234 | AO47: 1638 | AQ47: 4567.354
G48: 2023-09-01 | H48: 1960 | I48: 3575 | J48: 2335 | K48: 2450 | M48: 3650 | N48: 692.3 | T48: 14662.3 | U48: 700 | W48: 1153.28 | X48: 576.64 | Y48: 180.52 | AC48: 1638 | AD48: 3.17 | AF48: 3551.61 | AG48: 11810.69 | AH48: 2306.56 | AJ48: 541.56 | AM48: 81.234 | AO48: 1638 | AQ48: 4567.354
G49: 2023-10-01 | H49: 1960 | I49: 3575 | J49: 2335 | K49: 2450 | M49: 3650 | N49: 692.3 | T49: 14662.3 | U49: 700 | W49: 1153.28 | X49: 576.64 | Y49: 180.52 | AC49: 1638 | AF49: 3548.44 | AG49: 11813.86 | AH49: 2306.56 | AJ49: 541.56 | AM49: 81.234 | AO49: 1638 | AQ49: 4567.354
G50: 2023-11-01 | H50: 1960 | I50: 3575 | J50: 2335 | K50: 2450 | M50: 7550 | N50: 692.3 | T50: 18562.3 | U50: 700 | W50: 1153.28 | X50: 576.64 | Y50: 180.52 | AC50: 1638 | AD50: 112.18 | AF50: 3660.62 | AG50: 15601.68 | AH50: 2306.56 | AJ50: 541.56 | AM50: 81.234 | AO50: 1638 | AQ50: 4567.354
G51: 2023-12-01 | H51: 0 | I51: 0 | J51: 0 | K51: 2450 | M51: 200 | N51: 692.3 | T51: 3342.3 | U51: 700 | W51: 1153.28 | X51: 576.64 | Y51: 180.52 | AC51: 1638 | AD51: 360.57 | AF51: 3909.01 | AG51: 133.29 | AH51: 2306.56 | AJ51: 541.56 | AM51: 81.234 | AO51: 1638 | AQ51: 4567.354
G52: 汇总数 | H52: =SUM(H40:H51) -> 21560 | I52: 22070 | J52: 14010 | K52: 29375 | L52: 0 | M52: 44250 | N52: 8307.6 | T52: =SUM(T40:T51) -> 139572.6 | U52: 8400 | W52: =SUM(W40:W51) -> 13839.36 | X52: 6919.68 | Y52: 2214.24 | AC52: =SUM(AC40:AC51) -> 19656 | AD52: 1882.57 | AF52: =SUM(AF40:AF51) -> 44511.85 | AG52: 103460.75 | AH52: 27678.72 | AJ52: =SUM(AJ40:AJ51) -> 6498.72 | AM52: =SUM(AM40:AM51) -> 974.808 | AO52: =SUM(AO40:AO51) -> 19656 | AQ52: =SUM(AQ40:AQ51) -> 54808.248
G53: 月平均 | H53: =H52/12 -> 1796.666667 | I53: 1839.166667 | J53: 1167.5 | K53: 2447.916667 | L53: 0 | M53: 3687.5 | N53: 692.3 | T53: =T52/12 -> 11631.05 | U53: 700 | W53: =W52/12 -> 1153.28 | X53: 576.64 | Y53: 184.52 | AC53: =AC52/12 -> 1638 | AD53: 156.8808333 | AF53: =AF52/12 -> 3709.320833 | AG53: 8621.729167 | AH53: 2306.56 | AJ53: =AJ52/12 -> 541.56 | AM53: =AM52/12 -> 81.234 | AO53: =AO52/12 -> 1638 | AQ53: =AQ52/12 -> 4567.354
A54: 4 | B54: 陶玉娟 | C54: 632125197302050024 | D54: 1973.2 | E54: 副主任科员 | F54: 中级经济师10级 | G54: 2023-01-01 | H54: 1960 | I54: 2238 | J54: 2174 | K54: 1905 | M54: 3570 | N54: 592.35 | T54: =H54+I54+J54+K54+L54+M54+N54+O54 -> 12439.35 | U54: 700 | W54: 989.6 | X54: 494.8 | Y54: 193.36 | AC54: 1398 | AD54: 96.85 | AF54: =W54+X54+Y54+AB54+AC54+AD54 -> 3172.61 | AG54: =T54+U54+V54-AF54 -> 9966.74 | AH54: =W54*2 -> 1979.2 | AJ54: 436.08 | AM54: 65.412 | AO54: =AC54 -> 1398 | AQ54: =AH54+AI54+AJ54+AK54+AL54+AM54+AN54+AO54+AP54 -> 3878.692
G55: 2023-02-01 | H55: 1960 | I55: 2238 | J55: 2174 | K55: 2205 | M55: 3570 | N55: 592.35 | T55: 12739.35 | U55: 700 | W55: 989.6 | X55: 494.8 | Y55: 145.36 | AC55: 1398 | AD55: 93.58 | AF55: 3121.34 | AG55: 10318.01 | AH55: 1979.2 | AJ55: =Y55*3 -> 436.08 | AM55: =Y55/0.02*0.009 -> 65.412 | AO55: 1398 | AQ55: 3878.692
G56: 2023-03-01 | H56: 1960 | I56: 2238 | J56: 2174 | K56: 1905 | M56: 3570 | N56: 592.35 | T56: 12439.35 | U56: 700 | W56: 989.6 | X56: 494.8 | Y56: 145.36 | AC56: 1398 | AD56: 93.58 | AF56: 3121.34 | AG56: 10018.01 | AH56: 1979.2 | AJ56: 436.08 | AM56: 65.412 | AO56: 1398 | AQ56: 3878.692
G57: 2023-04-01 | H57: 1960 | I57: 2238 | J57: 2174 | K57: 1905 | M57: 3570 | N57: 592.35 | T57: 12439.35 | U57: 700 | W57: 989.6 | X57: 494.8 | Y57: 145.36 | AC57: 1398 | AD57: 93.58 | AF57: 3121.34 | AG57: 10018.01 | AH57: 1979.2 | AJ57: 436.08 | AM57: 65.412 | AO57: 1398 | AQ57: 3878.692
G58: 2023-05-01 | H58: 1960 | I58: 2238 | J58: 2174 | K58: 1905 | M58: 3570 | N58: 592.35 | T58: 12439.35 | U58: 700 | W58: 989.6 | X58: 494.8 | Y58: 145.36 | AC58: 1398 | AF58: 3027.76 | AG58: 10111.59 | AH58: 1979.2 | AJ58: 436.08 | AM58: 65.412 | AO58: 1398 | AQ58: 3878.692
G59: 2023-06-01 | H59: 1960 | I59: 3082 | J59: 2174 | K59: 1910 | M59: 3615 | N59: 592.35 | T59: 13333.35 | U59: 700 | W59: 989.6 | X59: 494.8 | Y59: 145.36 | AC59: 1398 | AD59: 187.16 | AF59: 3214.92 | AG59: 10818.43 | AH59: 1979.2 | AJ59: 436.08 | AM59: 65.412 | AO59: 1398 | AQ59: 3878.692
G60: 2023-07-01 | H60: 1960 | I60: 2337 | J60: 2174 | K60: 1910 | M60: 3615 | N60: 592.35 | T60: 12588.35 | U60: 700 | W60: 989.6 | X60: 494.8 | Y60: 198.42 | AC60: 1398 | AD60: 93.57 | AF60: 3174.39 | AG60: 10113.96 | AH60: 1979.2 | AJ60: 595.26 | AM60: 89.289 | AO60: 1398 | AQ60: 4061.749
G61: 2023-08-01 | H61: 1960 | I61: 2337 | J61: 2174 | K61: 2210 | M61: 3615 | N61: 592.35 | T61: 12888.35 | U61: 700 | W61: 989.6 | X61: 494.8 | Y61: 152.94 | AC61: 1398 | AD61: 93.58 | AF61: 3128.92 | AG61: 10459.43 | AH61: 1979.2 | AJ61: 458.82 | AM61: 68.823 | AO61: 1398 | AQ61: 3904.843
G62: 2023-09-01 | H62: 1960 | I62: 2337 | J62: 2174 | K62: 1910 | M62: 3615 | N62: 592.35 | T62: 12588.35 | U62: 700 | W62: 989.6 | X62: 494.8 | Y62: 152.94 | AC62: 1398 | AD62: 0 | AF62: 3035.34 | AG62: 10253.01 | AH62: 1979.2 | AJ62: 458.82 | AM62: 68.823 | AO62: 1398 | AQ62: 3904.843
G63: 2023-10-01 | H63: 1960 | I63: 2337 | J63: 2174 | K63: 1910 | M63: 3615 | N63: 592.35 | T63: 12588.35 | U63: 700 | W63: 989.6 | X63: 494.8 | Y63: 152.94 | AC63: 1398 | AF63: 3035.34 | AG63: 10253.01 | AH63: 1979.2 | AJ63: 458.82 | AM63: 68.823 | AO63: 1398 | AQ63: 3904.843
G64: 2023-11-01 | H64: 1960 | I64: 2337 | J64: 2174 | K64: 1910 | M64: 7515 | N64: 592.35 | T64: 16488.35 | U64: 700 | W64: 989.6 | X64: 494.8 | Y64: 152.94 | AC64: 1398 | AD64: 78.58 | AF64: 3113.92 | AG64: 14074.43 | AH64: 1979.2 | AJ64: 458.82 | AM64: 68.823 | AO64: 1398 | AQ64: 3904.843
G65: 2023-12-01 | H65: 0 | I65: 0 | J65: 0 | K65: 2210 | M65: 200 | N65: 592.35 | T65: 3002.35 | U65: 700 | W65: 989.6 | X65: 494.8 | Y65: 152.94 | AC65: 1398 | AD65: 78.58 | AF65: 3113.92 | AG65: 588.43 | AH65: 1979.2 | AJ65: 458.82 | AM65: 68.823 | AO65: 1398 | AQ65: 3904.843
G66: 汇总数 | H66: =SUM(H54:H65) -> 21560 | I66: 25957 | J66: 23914 | K66: 23795 | L66: 0 | M66: 43640 | N66: 7108.2 | T66: =SUM(T54:T65) -> 145974.2 | U66: 8400 | W66: =SUM(W54:W65) -> 11875.2 | X66: 5937.6 | Y66: 1883.28 | AC66: =SUM(AC54:AC65) -> 16776 | AD66: 909.06 | AF66: =SUM(AF54:AF65) -> 37381.14 | AG66: 116993.06 | AH66: 23750.4 | AJ66: =SUM(AJ54:AJ65) -> 5505.84 | AM66: =SUM(AM54:AM65) -> 825.876 | AO66: =SUM(AO54:AO65) -> 16776 | AQ66: =SUM(AQ54:AQ65) -> 46858.116
G67: 月平均 | H67: =H66/12 -> 1796.666667 | I67: 2163.083333 | J67: 1992.833333 | K67: 1982.916667 | L67: 0 | M67: 3636.666667 | N67: 592.35 | T67: =T66/12 -> 12164.51667 | U67: 700 | W67: =W66/12 -> 989.6 | X67: 494.8 | Y67: 156.94 | AC67: =AC66/12 -> 1398 | AD67: 75.755 | AF67: =AF66/12 -> 3115.095 | AG67: 9749.421667 | AH67: 1979.2 | AJ67: =AJ66/12 -> 458.82 | AM67: =AM66/12 -> 68.823 | AO67: =AO66/12 -> 1398 | AQ67: =AQ66/12 -> 3904.843
A68: 5 | B68: 王锦坤 | C68: 630104196810242024 | D68: 1968.1 | E68: 副主任科员 | F68: 中级经济师10级 | G68: 2023-01-01 | H68: 1940 | I68: 2875 | J68: 2073 | K68: 1404 | M68: 3815 | N68: 631.15 | T68: =H68+I68+J68+K68+L68+M68+N68+O68 -> 12738.15 | U68: 700 | W68: 1032.32 | X68: 516.16 | Y68: 206.52 | AC68: 1491 | AD68: 245.35 | AF68: =W68+X68+Y68+AB68+AC68+AD68 -> 3491.35 | AG68: =T68+U68+V68-AF68 -> 9946.8 | AH68: =W68*2 -> 2064.64 | AJ68: 475.56 | AM68: 71.334 | AO68: =AC68 -> 1491 | AQ68: =AH68+AI68+AJ68+AK68+AL68+AM68+AN68+AO68+AP68 -> 4102.534
G69: 2023-02-01 | H69: 1940 | I69: 2875 | J69: 2073 | K69: 1920 | M69: 3815 | N69: 631.15 | T69: 13254.15 | U69: 700 | W69: 1032.32 | X69: 516.16 | Y69: 158.52 | AC69: 1491 | AD69: 81.27 | AF69: 3279.27 | AG69: 10674.88 | AH69: 2064.64 | AJ69: =Y69*3 -> 475.56 | AM69: =Y69/0.02*0.009 -> 71.334 | AO69: 1491 | AQ69: 4102.534
G70: 2023-03-01 | H70: 1940 | I70: 2875 | J70: 2073 | K70: 1920 | M70: 3815 | N70: 631.15 | T70: 13254.15 | U70: 700 | W70: 1032.32 | X70: 516.16 | Y70: 158.52 | AC70: 1491 | AD70: 81.27 | AF70: 3279.27 | AG70: 10674.88 | AH70: 2064.64 | AJ70: 475.56 | AM70: 71.334 | AO70: 1491 | AQ70: 4102.534
G71: 2023-04-01 | H71: 1940 | I71: 2875 | J71: 2073 | K71: 1920 | M71: 3815 | N71: 631.15 | T71: 13254.15 | U71: 700 | W71: 1032.32 | X71: 516.16 | Y71: 158.52 | AC71: 1491 | AD71: 81.27 | AF71: 3279.27 | AG71: 10674.88 | AH71: 2064.64 | AJ71: 475.56 | AM71: 71.334 | AO71: 1491 | AQ71: 4102.534
G72: 2023-05-01 | H72: 1940 | I72: 2875 | J72: 2073 | K72: 1920 | M72: 3815 | N72: 631.15 | T72: 13254.15 | U72: 700 | W72: 1032.32 | X72: 516.16 | Y72: 158.52 | AC72: 1491 | AF72: 3198 | AG72: 10756.15 | AH72: 2064.64 | AJ72: 475.56 | AM72: 71.334 | AO72: 1491 | AQ72: 4102.534
G73: 2023-06-01 | H73: 1940 | I73: 3572 | J73: 2073 | K73: 1925 | M73: 3815 | N73: 631.15 | T73: 13956.15 | U73: 700 | W73: 1032.32 | X73: 516.16 | Y73: 158.52 | AC73: 1491 | AD73: 162.54 | AF73: 3360.54 | AG73: 11295.61 | AH73: 2064.64 | AJ73: 475.56 | AM73: 71.334 | AO73: 1491 | AQ73: 4102.534
G74: 2023-07-01 | H74: 1940 | I74: 2987 | J74: 2073 | K74: 1925 | M74: 3815 | N74: 631.15 | T74: 13371.15 | U74: 700 | W74: 1032.32 | X74: 516.16 | Y74: 214.8 | AC74: 1491 | AD74: 81.27 | AF74: 3335.55 | AG74: 10735.6 | AH74: 2064.64 | AJ74: 644.4 | AM74: 96.66 | AO74: 1491 | AQ74: 4296.7
G75: 2023-08-01 | H75: 1940 | I75: 2987 | J75: 2073 | K75: 1925 | M75: 3815 | N75: 631.15 | T75: 13371.15 | U75: 700 | W75: 1032.32 | X75: 516.16 | Y75: 166.56 | AC75: 1491 | AD75: 81.27 | AF75: 3287.31 | AG75: 10783.84 | AH75: 2064.64 | AJ75: 499.68 | AM75: 74.952 | AO75: 1491 | AQ75: 4130.272
G76: 2023-09-01 | H76: 1940 | I76: 2987 | J76: 2073 | K76: 1925 | M76: 3815 | N76: 631.15 | T76: 13371.15 | U76: 700 | W76: 1032.32 | X76: 516.16 | Y76: 166.56 | AC76: 1491 | AD76: 0 | AF76: 3206.04 | AG76: 10865.11 | AH76: 2064.64 | AJ76: 499.68 | AM76: 74.952 | AO76: 1491 | AQ76: 4130.272
G77: 2023-10-01 | H77: 1940 | I77: 2987 | J77: 2073 | K77: 1925 | M77: 7715 | N77: 631.15 | T77: 17271.15 | U77: 700 | W77: 1032.32 | X77: 516.16 | Y77: 166.56 | AC77: 1491 | AD77: 0 | AF77: 3206.04 | AG77: 14765.11 | AH77: 2064.64 | AJ77: 35899.92 | AM77: 74.952 | AO77: 1491 | AQ77: 39530.512 | AR77: 10月退休
G78: 2023-11-01 | H78: 0 | I78: 0 | J78: 0 | K78: 0 | M78: 0 | N78: 0 | T78: 0 | U78: 0 | W78: 0 | X78: 0 | Y78: 166.56 | AC78: 0 | AD78: 0 | AF78: 166.56 | AG78: -166.56 | AH78: 0 | AJ78: =Y78*3 -> 499.68 | AM78: 74.952 | AO78: 0 | AQ78: 574.632
G79: 2023-12-01 | H79: 0 | I79: 0 | J79: 0 | K79: 0 | M79: 0 | N79: 0 | T79: 0 | U79: 0 | W79: 0 | X79: 0 | Y79: 0 | AC79: 0 | AD79: 0 | AF79: 0 | AG79: 0 | AH79: 0 | AJ79: 0 | AM79: 0 | AQ79: 0
G80: 汇总数 | H80: =SUM(H68:H77) -> 19400 | I80: 29895 | J80: 20730 | K80: 18709 | M80: =SUM(M68:M77) -> 42050 | N80: =SUM(N68:N77) -> 6311.5 | T80: =SUM(T68:T77) -> 137095.5 | U80: 7000 | W80: =SUM(W68:W77) -> 10323.2 | X80: =SUM(X68:X77) -> 5161.6 | Y80: =SUM(Y68:Y79) -> 1880.16 | AC80: =SUM(AC68:AC78) -> 14910 | AD80: 814.24 | AF80: =SUM(AF68:AF78) -> 33089.2 | AG80: 111006.3 | AH80: 20646.4 | AJ80: =SUM(AJ68:AJ78) -> 40896.72 | AM80: =SUM(AM68:AM78) -> 824.472 | AO80: =SUM(AO68:AO78) -> 14910 | AQ80: =SUM(AQ68:AQ78) -> 77277.592
G81: 月平均 | H81: =H80/10 -> 1940 | I81: 2989.5 | J81: 2073 | K81: 1870.9 | M81: =M80/10 -> 4205 | N81: =N80/10 -> 631.15 | T81: =T80/10 -> 13709.55 | U81: 700 | W81: =W80/10 -> 1032.32 | X81: =X80/10 -> 516.16 | Y81: =Y80/11 -> 170.9236364 | AC81: =AC80/10 -> 1491 | AD81: 81.424 | AF81: =AF80/10 -> 3308.92 | AG81: 11100.63 | AH81: 2064.64 | AJ81: =AJ80/11 -> 3717.883636 | AM81: =AM80/11 -> 74.952 | AO81: =AO80/10 -> 1491 | AQ81: =AQ80/11 -> 7025.235636
A82: 6 | B82: 陈国苍 | C82: 632125196502240012 | D82: 1965.2 | E82: 科员 | F82: 助理政工师12级 | G82: 2023-01-01 | H82: 1720 | I82: 3099 | J82: 1711 | K82: 1940 | M82: 3405 | N82: 593.75 | T82: =H82+I82+J82+K82+L82+M82+N82+O82 -> 12468.75 | U82: 650 | W82: 985.36 | X82: 492.68 | Y82: 194.74 | AC82: 1401 | AD82: 490.4 | AF82: =W82+X82+Y82+AB82+AC82+AD82 -> 3564.18 | AG82: =T82+U82+V82-AF82 -> 9554.57 | AH82: =W82*2 -> 1970.72 | AJ82: 440.22 | AM82: 66.033 | AO82: =AC82 -> 1401 | AQ82: =AH82+AI82+AJ82+AK82+AL82+AM82+AN82+AO82+AP82 -> 3877.973
G83: 2023-02-01 | H83: 1720 | I83: 3099 | J83: 1711 | K83: 1940 | M83: 3405 | N83: 593.75 | T83: 12468.75 | U83: 650 | W83: 985.36 | X83: 492.68 | Y83: 146.74 | AC83: 1401 | AD83: 109.48 | AF83: 3135.26 | AG83: 9983.49 | AH83: 1970.72 | AJ83: =Y83*3 -> 440.22 | AM83: =Y83/0.02*0.009 -> 66.033 | AO83: 1401 | AQ83: 3877.973
G84: 2023-03-01 | H84: 1720 | I84: 3099 | J84: 1711 | K84: 1940 | M84: 3405 | N84: 593.75 | T84: 12468.75 | U84: 650 | W84: 985.36 | X84: 492.68 | Y84: 146.74 | AC84: 1401 | AD84: 109.48 | AF84: 3135.26 | AG84: 9983.49 | AH84: 1970.72 | AJ84: 440.22 | AM84: 66.033 | AO84: 1401 | AQ84: 3877.973
G85: 2023-04-01 | H85: 1720 | I85: 3099 | J85: 1711 | K85: 2240 | M85: 3405 | N85: 593.75 | T85: 12768.75 | U85: 650 | W85: 985.36 | X85: 492.68 | Y85: 146.74 | AC85: 1401 | AD85: 109.48 | AF85: 3135.26 | AG85: 10283.49 | AH85: 1970.72 | AJ85: 440.22 | AM85: 66.033 | AO85: 1401 | AQ85: 3877.973
G86: 2023-05-01 | H86: 1720 | I86: 3099 | J86: 1711 | K86: 1940 | M86: 3405 | N86: 593.75 | T86: 12468.75 | U86: 650 | W86: 985.36 | X86: 492.68 | Y86: 146.74 | AC86: 1401 | AF86: 3025.78 | AG86: 10092.97 | AH86: 1970.72 | AJ86: 440.22 | AM86: 66.033 | AO86: 1401 | AQ86: 3877.973
G87: 2023-06-01 | H87: 1720 | I87: 3838 | J87: 1711 | K87: 1945 | M87: 3405 | N87: 593.75 | T87: 13212.75 | U87: 650 | W87: 985.36 | X87: 492.68 | Y87: 146.74 | AC87: 1401 | AD87: 218.95 | AF87: 3244.73 | AG87: 10618.02 | AH87: 1970.72 | AJ87: 440.22 | AM87: 66.033 | AO87: 1401 | AQ87: 3877.973
G88: 2023-07-01 | H88: 1720 | I88: 3218 | J88: 1711 | K88: 1945 | M88: 3405 | N88: 593.75 | T88: 12592.75 | U88: 650 | W88: 985.36 | X88: 492.68 | Y88: 199.66 | AC88: 1401 | AD88: 109.48 | AF88: 3188.18 | AG88: 10054.57 | AH88: 1970.72 | AJ88: 598.98 | AM88: 89.847 | AO88: 1401 | AQ88: 4060.547
G89: 2023-08-01 | H89: 1720 | I89: 3218 | J89: 1711 | K89: 1945 | M89: 3405 | N89: 593.75 | T89: 12592.75 | U89: 650 | W89: 985.36 | X89: 492.68 | Y89: 154.3 | AC89: 1401 | AD89: 109.48 | AF89: 3142.82 | AG89: 10099.93 | AH89: 1970.72 | AJ89: 462.9 | AM89: 69.435 | AO89: 1401 | AQ89: 3904.055
G90: 2023-09-01 | H90: 1720 | I90: 3218 | J90: 1711 | K90: 1945 | M90: 3405 | N90: 593.75 | T90: 12592.75 | U90: 650 | W90: 985.36 | X90: 492.68 | Y90: 154.3 | AC90: 1401 | AD90: 109.47 | AF90: 3142.81 | AG90: 10099.94 | AH90: 1970.72 | AJ90: 462.9 | AM90: 69.435 | AO90: 1401 | AQ90: 3904.055
G91: 2023-10-01 | H91: 1720 | I91: 3218 | J91: 1711 | K91: 1945 | M91: 3405 | N91: 593.75 | T91: 12592.75 | U91: 650 | W91: 985.36 | X91: 492.68 | Y91: 154.3 | AC91: 1401 | AF91: 3033.34 | AG91: 10209.41 | AH91: 1970.72 | AJ91: 462.9 | AM91: 69.435 | AO91: 1401 | AQ91: 3904.055
G92: 2023-11-01 | H92: 1720 | I92: 3218 | J92: 1711 | K92: 1945 | M92: 7305 | N92: 593.75 | T92: 16492.75 | U92: 650 | W92: 985.36 | X92: 492.68 | Y92: 154.3 | AC92: 1401 | AD92: 143.93 | AF92: 3177.27 | AG92: 13965.48 | AH92: 1970.72 | AJ92: 462.9 | AM92: 69.435 | AO92: 1401 | AQ92: 3904.055
G93: 2023-12-01 | H93: 0 | I93: 0 | J93: 0 | K93: 1945 | M93: 200 | N93: 593.75 | T93: 2738.75 | U93: 650 | W93: 985.36 | X93: 492.68 | Y93: 154.3 | AC93: 1401 | AD93: 364.92 | AF93: 3398.26 | AG93: -9.51 | AH93: 1970.72 | AJ93: 462.9 | AM93: 69.435 | AO93: 1401 | AQ93: 3904.055
G94: 汇总数 | H94: =SUM(H82:H93) -> 18920 | I94: 35423 | J94: 18821 | K94: 23615 | M94: =SUM(M82:M93) -> 41555 | N94: =SUM(N82:N93) -> 7125 | T94: =SUM(T82:T93) -> 145459 | U94: 7800 | W94: =SUM(W82:W93) -> 11824.32 | X94: 5912.16 | Y94: 1899.6 | AC94: =SUM(AC82:AC93) -> 16812 | AD94: 1875.07 | AF94: =SUM(AF82:AF93) -> 38323.15 | AG94: 114935.85 | AH94: 23648.64 | AJ94: =SUM(AJ82:AJ93) -> 5554.8 | AM94: =SUM(AM82:AM93) -> 833.22 | AO94: =SUM(AO82:AO93) -> 16812 | AQ94: =SUM(AQ82:AQ93) -> 46848.66
G95: 月平均 | H95: =H94/12 -> 1576.666667 | I95: 2951.916667 | J95: 1568.416667 | K95: 1967.916667 | M95: =M94/12 -> 3462.916667 | N95: =N94/12 -> 593.75 | T95: =T94/12 -> 12121.58333 | U95: 650 | W95: =W94/12 -> 985.36 | X95: 492.68 | Y95: 158.3 | AC95: =AC94/12 -> 1401 | AD95: 156.2558333 | AF95: =AF94/12 -> 3193.595833 | AG95: 9577.9875 | AH95: 1970.72 | AJ95: =AJ94/12 -> 462.9 | AM95: =AM94/12 -> 69.435 | AO95: =AO94/12 -> 1401 | AQ95: =AQ94/12 -> 3904.055
A96: 7 | B96: 张效东 | C96: 63212619630601003X | D96: 1963.6 | E96: 科员 | F96: 助理政工师12级 | G96: 2023-01-01 | H96: 1720 | I96: 3337 | J96: 1711 | K96: 1955 | M96: 3405 | N96: 606.4 | T96: =H96+I96+J96+K96+L96+M96+N96+O96 -> 12734.4 | U96: 650 | W96: 1005.28 | X96: 502.64 | Y96: 199.3 | AC96: 1431 | AD96: 123.55 | AF96: =W96+X96+Y96+AB96+AC96+AD96 -> 3261.77 | AG96: =T96+U96+V96-AF96 -> 10122.63 | AH96: =W96*2 -> 2010.56 | AJ96: 453.9 | AM96: 68.085 | AO96: 1431 | AQ96: =AH96+AI96+AJ96+AK96+AL96+AM96+AN96+AO96+AP96 -> 3963.545
G97: 2023-02-01 | H97: 1720 | I97: 3337 | J97: 1711 | K97: 1955 | M97: 3405 | N97: 606.4 | T97: 12734.4 | U97: 650 | W97: 1005.28 | X97: 502.64 | Y97: 151.3 | AC97: 1431 | AD97: 115.13 | AF97: 3205.35 | AG97: 10179.05 | AH97: 2010.56 | AJ97: =Y97*3 -> 453.9 | AM97: =Y97/0.02*0.009 -> 68.085 | AO97: =AC97 -> 1431 | AQ97: 3963.545
G98: 2023-03-01 | H98: 1720 | I98: 3337 | J98: 1711 | K98: 1955 | M98: 3405 | N98: 606.4 | T98: 12734.4 | U98: 650 | W98: 1005.28 | X98: 502.64 | Y98: 151.3 | AC98: 1431 | AD98: 115.13 | AF98: 3205.35 | AG98: 10179.05 | AH98: 2010.56 | AJ98: 453.9 | AM98: 68.085 | AO98: 1431 | AQ98: 3963.545
G99: 2023-04-01 | H99: 1720 | I99: 3337 | J99: 1711 | K99: 1955 | M99: 3405 | N99: 606.4 | T99: 12734.4 | U99: 650 | W99: 1005.28 | X99: 502.64 | Y99: 151.3 | AC99: 1431 | AD99: 85.13 | AF99: 3175.35 | AG99: 10209.05 | AH99: 2010.56 | AJ99: 453.9 | AM99: 68.085 | AO99: 1431 | AQ99: 3963.545
G100: 2023-05-01 | H100: 1720 | I100: 3337 | J100: 1711 | K100: 1955 | M100: 3405 | N100: 606.4 | T100: 12734.4 | U100: 650 | W100: 1005.28 | X100: 502.64 | Y100: 151.3 | AC100: 1431 | AF100: 3090.22 | AG100: 10294.18 | AH100: 2010.56 | AJ100: 453.9 | AM100: 68.085 | AO100: 1431 | AQ100: 3963.545
G101: 2023-06-01 | H101: 1720 | I101: 4965 | J101: 1711 | K101: 1960 | M101: 3440 | N101: 606.4 | T101: 14402.4 | U101: 650 | W101: 1005.28 | X101: 502.64 | Y101: 151.3 | AC101: 1431 | AD101: 170.27 | AF101: 3260.49 | AG101: 11791.91 | AH101: 2010.56 | AJ101: 453.9 | AM101: 68.085 | AO101: 1431 | AQ101: 3963.545 | AR101: 6月退休
G102: 2023-07-01 | H102: 0 | I102: 0 | J102: 0 | K102: 0 | M102: 0 | N102: 0 | T102: 0 | U102: 0 | W102: 0 | X102: 0 | Y102: 114.96 | AC102: 0 | AD102: 0 | AF102: 114.96 | AG102: -114.96 | AH102: 0 | AJ102: 35889.48 | AM102: 51.732 | AO102: 0 | AQ102: 35941.212
G103: 2023-08-01 | H103: 0 | I103: 0 | J103: 0 | K103: 0 | M103: 0 | N103: 0 | T103: 0 | U103: 0 | W103: 0 | X103: 0 | Y103: 0 | AC103: 0 | AD103: 0 | AF103: 0 | AG103: 0 | AH103: 0 | AJ103: =Y103*3 -> 0 | AM103: 0 | AO103: 0 | AQ103: 0
G104: 2023-09-01 | H104: 0 | I104: 0 | J104: 0 | K104: 0 | M104: 0 | N104: 0 | T104: 0 | U104: 0 | W104: 0 | X104: 0 | Y104: 0 | AC104: 0 | AD104: 0 | AF104: 0 | AG104: 0 | AH104: 0 | AJ104: =Y104*3 -> 0 | AM104: 0 | AO104: 0 | AQ104: 0
G105: 2023-10-01 | H105: 0 | I105: 0 | J105: 0 | K105: 0 | M105: 0 | N105: 0 | T105: 0 | U105: 0 | W105: 0 | X105: 0 | AC105: 0 | AD105: 0 | AF105: 0 | AG105: 0 | AH105: 0 | AJ105: 0 | AM105: 0 | AO105: 0 | AQ105: 0
G106: 2023-11-01 | H106: 0 | I106: 0 | J106: 0 | K106: 0 | M106: 0 | N106: 0 | T106: 0 | U106: 0 | W106: 0 | X106: 0 | AC106: 0 | AD106: 0 | AF106: 0 | AG106: 0 | AH106: 0 | AJ106: 0 | AM106: 0 | AO106: 0 | AQ106: 0
G107: 2023-12-01 | H107: 0 | I107: 0 | J107: 0 | K107: 0 | M107: 0 | N107: 0 | T107: 0 | U107: 0 | W107: 0 | X107: 0 | Y107: 0 | AC107: 0 | AD107: 0 | AF107: 0 | AG107: 0 | AH107: 0 | AJ107: 0 | AM107: 0 | AO107: 0 | AQ107: 0
G108: 汇总数 | H108: =SUM(H96:H101) -> 10320 | I108: 21650 | J108: 10266 | K108: 11735 | L108: 0 | M108: 20465 | N108: 3638.4 | T108: =SUM(T96:T101) -> 78074.4 | U108: =SUM(U96:U101) -> 3900 | W108: =SUM(W96:W106) -> 6031.68 | X108: 3015.84 | Y108: 1070.76 | AC108: =SUM(AC96:AC106) -> 8586 | AD108: 609.21 | AF108: =SUM(AF96:AF106) -> 19313.49 | AG108: 62660.91 | AH108: 12063.36 | AJ108: =SUM(AJ96:AJ106) -> 38612.88 | AM108: =SUM(AM96:AM106) -> 460.242 | AO108: =SUM(AO96:AO106) -> 8586 | AQ108: =SUM(AQ96:AQ106) -> 59722.482
G109: 月平均 | H109: =H108/6 -> 1720 | I109: 3608.333333 | J109: 1711 | K109: 1955.833333 | L109: 0 | M109: 3410.833333 | N109: 606.4 | T109: =T108/6 -> 13012.4 | U109: 650 | W109: =W108/6 -> 1005.28 | X109: =X108/6 -> 502.64 | Y109: =Y108/7 -> 152.9657143 | AC109: =AC108/6 -> 1431 | AD109: 101.535 | AF109: =AF108/6 -> 3218.915 | AG109: 10443.485 | AH109: 2010.56 | AJ109: =AJ108/7 -> 5516.125714 | AM109: =AM108/7 -> 65.74885714 | AO109: =AO108/6 -> 1431 | AQ109: =AQ108/7 -> 8531.783143
A110: 8 | B110: 谢文云 | C110: 632125196302230039 | D110: 1963.2 | E110: 科员 | F110: 助理政工师12级 | G110: 2023-01-01 | H110: 1720 | I110: 3099 | J110: 1711 | K110: 1940 | M110: 3405 | N110: 593.75 | T110: =H110+I110+J110+K110+L110+M110+N110+O110 -> 12468.75 | U110: 650 | W110: 983.44 | X110: 491.72 | Y110: 194.74 | AC110: 1401 | AD110: 490.77 | AF110: =W110+X110+Y110+AB110+AC110+AD110 -> 3561.67 | AG110: =T110+U110+V110-AF110 -> 9557.08 | AH110: =W110*2 -> 1966.88 | AJ110: 440.22 | AM110: 66.03 | AO110: =AC110 -> 1401 | AQ110: =AH110+AI110+AJ110+AK110+AL110+AM110+AN110+AO110+AP110 -> 3874.13
G111: 2023-02-01 | H111: 1720 | I111: 3347 | J111: 1711 | K111: 1940 | M111: 3405 | N111: 593.75 | T111: =H111+I111+J111+K111+L111+M111+N111+O111 -> 12716.75 | U111: 650 | W111: 983.44 | X111: 491.72 | Y111: 146.74 | AC111: 1401 | AD111: 109.56 | AF111: 3132.46 | AG111: 10234.29 | AH111: 1966.88 | AJ111: 39700.56 | AM111: =Y111/0.02*0.009 -> 66.033 | AO111: =AC111 -> 1401 | AQ111: 43134.473 | AR111: 2月退休
G112: 2023-03-01 | H112: 0 | I112: 0 | J112: 0 | K112: 0 | M112: 0 | N112: 0 | T112: 0 | U112: 0 | W112: 0 | X112: 0 | Y112: 146.74 | AC112: 0 | AD112: 0 | AF112: 146.74 | AG112: -146.74 | AH112: 0 | AJ112: =Y112*3 -> 440.22 | AM112: 66.033 | AO112: 0 | AQ112: 506.253
G113: 2023-04-01 | H113: 0 | I113: 0 | J113: 0 | K113: 0 | M113: 0 | N113: 0 | T113: 0 | U113: 0 | W113: 0 | X113: 0 | AC113: 0 | AD113: 0 | AF113: 0 | AG113: 0 | AH113: 0 | AJ113: 0 | AM113: 0 | AO113: 0 | AQ113: 0
G114: 2023-05-01 | H114: 0 | I114: 0 | J114: 0 | K114: 0 | M114: 0 | N114: 0 | T114: 0 | U114: 0 | W114: 0 | X114: 0 | AC114: 0 | AD114: 0 | AF114: 0 | AG114: 0 | AH114: 0 | AJ114: 0 | AM114: 0 | AO114: 0 | AQ114: 0
G115: 2023-06-01 | H115: 0 | I115: 0 | J115: 0 | K115: 0 | M115: 0 | N115: 0 | T115: 0 | U115: 0 | W115: 0 | X115: 0 | AC115: 0 | AD115: 0 | AF115: 0 | AG115: 0 | AH115: 0 | AJ115: 0 | AM115: 0 | AO115: 0 | AQ115: 0
G116: 2023-07-01 | H116: 0 | I116: 0 | J116: 0 | K116: 0 | M116: 0 | N116: 0 | T116: 0 | U116: 0 | W116: 0 | X116: 0 | Y116: 56.88 | AC116: 0 | AD116: 0 | AF116: 56.88 | AG116: -56.88 | AH116: 0 | AJ116: 170.64 | AM116: 25.596 | AO116: 0 | AQ116: 196.236
G117: 2023-08-01 | H117: 0 | I117: 0 | J117: 0 | K117: 0 | M117: 0 | N117: 0 | T117: 0 | U117: 0 | W117: 0 | X117: 0 | Y117: 0 | AC117: 0 | AD117: 0 | AF117: 0 | AG117: 0 | AH117: 0 | AJ117: 0 | AM117: 0 | AO117: 0 | AQ117: 0
G118: 2023-09-01 | H118: 0 | I118: 0 | J118: 0 | K118: 0 | M118: 0 | N118: 0 | T118: 0 | U118: 0 | W118: 0 | X118: 0 | Y118: 0 | AC118: 0 | AD118: 0 | AF118: 0 | AG118: 0 | AH118: 0 | AJ118: 0 | AM118: 0 | AO118: 0 | AQ118: 0
G119: 2023-10-01 | H119: 0 | I119: 0 | J119: 0 | K119: 0 | M119: 0 | N119: 0 | T119: 0 | U119: 0 | W119: 0 | X119: 0 | AC119: 0 | AD119: 0 | AF119: 0 | AG119: 0 | AH119: 0 | AJ119: 0 | AM119: 0 | AO119: 0 | AQ119: 0
G120: 2023-11-01 | H120: 0 | I120: 0 | J120: 0 | K120: 0 | M120: 0 | N120: 0 | T120: 0 | U120: 0 | W120: 0 | X120: 0 | AC120: 0 | AD120: 0 | AF120: 0 | AG120: 0 | AH120: 0 | AJ120: 0 | AM120: 0 | AO120: 0 | AQ120: 0
G121: 2023-12-01 | H121: 0 | I121: 0 | J121: 0 | K121: 0 | M121: 0 | N121: 0 | T121: 0 | U121: 0 | W121: 0 | X121: 0 | Y121: 0 | AC121: 0 | AD121: 0 | AF121: 0 | AG121: 0 | AH121: 0 | AJ121: 0 | AM121: 0 | AO121: 0 | AQ121: 0
G122: 汇总数 | H122: =SUM(H110:H111) -> 3440 | I122: 6446 | J122: 3422 | K122: 3880 | L122: 0 | M122: 6810 | N122: 1187.5 | T122: =SUM(T110:T111) -> 25185.5 | U122: =SUM(U110:U111) -> 1300 | W122: =SUM(W110:W121) -> 1966.88 | X122: 983.44 | Y122: 545.1 | AC122: =SUM(AC110:AC121) -> 2802 | AD122: 600.33 | AF122: =SUM(AF110:AF121) -> 6897.75 | AG122: 19587.75 | AH122: 3933.76 | AJ122: =SUM(AJ110:AJ121) -> 40751.64 | AM122: =SUM(AM110:AM121) -> 223.692 | AO122: =SUM(AO110:AO121) -> 2802 | AQ122: =SUM(AQ110:AQ121) -> 47711.092
G123: 月平均 | H123: =H122/2 -> 1720 | I123: 3223 | J123: 1711 | K123: 1940 | L123: 0 | M123: 3405 | N123: 593.75 | T123: =T122/2 -> 12592.75 | U123: 650 | W123: =W122/2 -> 983.44 | X123: =X122/2 -> 491.72 | Y123: =Y122/4 -> 136.275 | AC123: =AC122/2 -> 1401 | AD123: 300.165 | AF123: =AF122/2 -> 3448.875 | AG123: 9793.875 | AH123: 1966.88 | AJ123: =AJ122/4 -> 10187.91 | AM123: =AM122/4 -> 55.923 | AO123: =AO122/2 -> 1401 | AQ123: =AQ122/4 -> 11927.773
A124: 9 | B124: 靳天文 | C124: 632124197310240016 | D124: 1973.1 | E124: 综合业务股副股长 | F124: 政工员13级 | G124: 2023-01-01 | H124: 1720 | I124: 2337 | J124: 1787 | K124: 2021 | M124: 3350 | N124: 565.45 | T124: =H124+I124+J124+K124+L124+M124+N124+O124 -> 11780.45 | U124: 650 | W124: 922.88 | X124: 461.44 | Y124: 178.72 | AC124: 1333 | AD124: 86.97 | AF124: =W124+X124+Y124+AB124+AC124+AD124 -> 2983.01 | AG124: =T124+U124+V124-AF124 -> 9447.44 | AH124: =W124*2 -> 1845.76 | AJ124: 392.16 | AM124: 58.824 | AO124: =AC124 -> 1333 | AQ124: =AH124+AI124+AJ124+AK124+AL124+AM124+AN124+AO124+AP124 -> 3629.744
G125: 2023-02-01 | H125: 1720 | I125: 2337 | J125: 1787 | K125: 2115 | M125: 3350 | N125: 565.45 | T125: 11874.45 | U125: 650 | W125: 922.88 | X125: 461.44 | Y125: 130.72 | AC125: 1333 | AD125: 35.01 | AF125: 2883.05 | AG125: 9641.4 | AH125: 1845.76 | AJ125: =Y125*3 -> 392.16 | AM125: =Y125/0.02*0.009 -> 58.824 | AO125: 1333 | AQ125: 3629.744
G126: 2023-03-01 | H126: 1720 | I126: 2337 | J126: 1787 | K126: 2115 | M126: 3350 | N126: 565.45 | T126: 11874.45 | U126: 650 | W126: 922.88 | X126: 461.44 | Y126: 130.72 | AC126: 1333 | AD126: 35.01 | AF126: 2883.05 | AG126: 9641.4 | AH126: 1845.76 | AJ126: 392.16 | AM126: 58.824 | AO126: 1333 | AQ126: 3629.744
G127: 2023-04-01 | H127: 1720 | I127: 2337 | J127: 1787 | K127: 2115 | M127: 3350 | N127: 565.45 | T127: 11874.45 | U127: 650 | W127: 922.88 | X127: 461.44 | Y127: 130.72 | AC127: 1333 | AD127: 35.01 | AF127: 2883.05 | AG127: 9641.4 | AH127: 1845.76 | AJ127: 392.16 | AM127: 58.824 | AO127: 1333 | AQ127: 3629.744
G128: 2023-05-01 | H128: 1720 | I128: 2337 | J128: 1787 | K128: 2415 | M128: 3350 | N128: 565.45 | T128: 12174.45 | U128: 650 | W128: 922.88 | X128: 461.44 | Y128: 130.72 | AC128: 1333 | AF128: 2848.04 | AG128: 9976.41 | AH128: 1845.76 | AJ128: 392.16 | AM128: 58.824 | AO128: 1333 | AQ128: 3629.744
G129: 2023-06-01 | H129: 1720 | I129: 2956 | J129: 1787 | K129: 2420 | M129: 3350 | N129: 565.45 | T129: 12798.45 | U129: 650 | W129: 922.88 | X129: 461.44 | Y129: 130.72 | AC129: 1333 | AD129: 70.01 | AF129: 2918.05 | AG129: 10530.4 | AH129: 1845.76 | AJ129: 392.16 | AM129: 58.824 | AO129: 1333 | AQ129: 3629.744
G130: 2023-07-01 | H130: 1720 | I130: 2436 | J130: 1787 | K130: 2120 | M130: 3350 | N130: 565.45 | T130: 11978.45 | U130: 650 | W130: 922.88 | X130: 461.44 | Y130: 199.74 | AC130: 1333 | AD130: 35.01 | AF130: 2952.07 | AG130: 9676.38 | AH130: 1845.76 | AJ130: 599.22 | AM130: 89.883 | AO130: 1333 | AQ130: 3867.863
G131: 2023-08-01 | H131: 1720 | I131: 2436 | J131: 1787 | K131: 2120 | M131: 3350 | N131: 565.45 | T131: 11978.45 | U131: 650 | W131: 922.88 | X131: 461.44 | Y131: 140.58 | AC131: 1333 | AD131: 35.01 | AF131: 2892.91 | AG131: 9735.54 | AH131: 1845.76 | AJ131: 421.74 | AM131: 63.261 | AO131: 1333 | AQ131: 3663.761
G132: 2023-09-01 | H132: 1720 | I132: 2436 | J132: 1787 | K132: 2120 | M132: 3350 | N132: 565.45 | T132: 11978.45 | U132: 650 | W132: 922.88 | X132: 461.44 | Y132: 140.58 | AC132: 1333 | AD132: 0 | AF132: 2857.9 | AG132: 9770.55 | AH132: 1845.76 | AJ132: 421.74 | AM132: 63.261 | AO132: 1333 | AQ132: 3663.761
G133: 2023-10-01 | H133: 1720 | I133: 2436 | J133: 1787 | K133: 2120 | M133: 3350 | N133: 565.45 | T133: 11978.45 | U133: 650 | W133: 922.88 | X133: 461.44 | Y133: 140.58 | AC133: 1333 | AF133: 2857.9 | AG133: 9770.55 | AH133: 1845.76 | AJ133: 421.74 | AM133: 63.261 | AO133: 1333 | AQ133: 3663.761
G134: 2023-11-01 | H134: 1720 | I134: 2436 | J134: 1787 | K134: 2120 | M134: 7250 | N134: 565.45 | T134: 15878.45 | U134: 650 | W134: 922.88 | X134: 461.44 | Y134: 140.58 | AC134: 1333 | AD134: 0 | AF134: 2857.9 | AG134: 13670.55 | AH134: 1845.76 | AJ134: 421.74 | AM134: 63.261 | AO134: 1333 | AQ134: 3663.761
G135: 2023-12-01 | H135: 0 | I135: 0 | J135: 0 | K135: 2120 | M135: 200 | N135: 565.45 | T135: 2885.45 | U135: 650 | W135: 922.88 | X135: 461.44 | Y135: 140.58 | AC135: 1333 | AF135: 2857.9 | AG135: 677.55 | AH135: 1845.76 | AJ135: 421.74 | AM135: 63.261 | AO135: 1333 | AQ135: 3663.761
G136: 汇总数 | H136: =SUM(H124:H135) -> 18920 | I136: 26821 | J136: 19657 | K136: 25921 | L136: 0 | M136: 40950 | N136: 6785.4 | T136: =SUM(T124:T135) -> 139054.4 | U136: 7800 | W136: =SUM(W124:W135) -> 11074.56 | X136: 5537.28 | Y136: 1734.96 | AC136: =SUM(AC124:AC135) -> 15996 | AD136: 332.03 | AF136: =SUM(AF124:AF135) -> 34674.83 | AG136: 112179.57 | AH136: 22149.12 | AJ136: =SUM(AJ124:AJ135) -> 5060.88 | AM136: =SUM(AM124:AM135) -> 759.132 | AO136: =SUM(AO124:AO135) -> 15996 | AQ136: =SUM(AQ124:AQ135) -> 43965.132
G137: 月平均 | H137: =H136/12 -> 1576.666667 | I137: 2235.083333 | J137: 1638.083333 | K137: 2160.083333 | L137: 0 | M137: 3412.5 | N137: 565.45 | T137: =T136/12 -> 11587.86667 | U137: 650 | W137: =W136/12 -> 922.88 | X137: 461.44 | Y137: 144.58 | AC137: =AC136/12 -> 1333 | AD137: 27.66916667 | AF137: =AF136/12 -> 2889.569167 | AG137: 9348.2975 | AH137: 1845.76 | AJ137: =AJ136/12 -> 421.74 | AM137: =AM136/12 -> 63.261 | AO137: =AO136/12 -> 1333 | AQ137: =AQ136/12 -> 3663.761
A138: 10 | B138: 方昌明 | C138: 630103197911250435 | D138: 1979.11 | E138: 办公室主任 | F138: 中级经济师10级 | G138: 2023-01-01 | H138: 1940 | I138: 1860 | J138: 1995 | K138: 2255 | M138: 3670 | N138: 586 | T138: =H138+I138+J138+K138+L138+M138+N138+O138 -> 12306 | U138: 650 | W138: 966.16 | X138: 483.08 | Y138: 185.1 | AC138: 1382 | AD138: 47.19 | AF138: =W138+X138+Y138+AB138+AC138+AD138 -> 3063.53 | AG138: =T138+U138+V138-AF138 -> 9892.47 | AH138: =W138*2 -> 1932.32 | AJ138: 411.3 | AM138: 61.695 | AO138: =AC138 -> 1382 | AQ138: =AH138+AI138+AJ138+AK138+AL138+AM138+AN138+AO138+AP138 -> 3787.315
G139: 2023-02-01 | H139: 1940 | I139: 1860 | J139: 1995 | K139: 2255 | M139: 3670 | N139: 586 | T139: 12306 | U139: 650 | W139: 966.16 | X139: 483.08 | Y139: 137.1 | AC139: 1382 | AD139: 17.93 | AF139: 2986.27 | AG139: 9969.73 | AH139: 1932.32 | AJ139: =Y139*3 -> 411.3 | AM139: =Y139/0.02*0.009 -> 61.695 | AO139: 1382 | AQ139: 3787.315
G140: 2023-03-01 | H140: 1940 | I140: 1860 | J140: 1995 | K140: 2255 | M140: 3670 | N140: 586 | T140: 12306 | U140: 650 | W140: 966.16 | X140: 483.08 | Y140: 137.1 | AC140: 1382 | AD140: 17.93 | AF140: 2986.27 | AG140: 9969.73 | AH140: 1932.32 | AJ140: 411.3 | AM140: 61.695 | AO140: 1382 | AQ140: 3787.315
G141: 2023-04-01 | H141: 1940 | I141: 1860 | J141: 1995 | K141: 2555 | M141: 3670 | N141: 586 | T141: 12606 | U141: 650 | W141: 966.16 | X141: 483.08 | Y141: 137.1 | AC141: 1382 | AD141: 17.93 | AF141: 2986.27 | AG141: 10269.73 | AH141: 1932.32 | AJ141: 411.3 | AM141: 61.695 | AO141: 1382 | AQ141: 3787.315
G142: 2023-05-01 | H142: 1940 | I142: 1860 | J142: 1995 | K142: 2555 | M142: 3670 | N142: 586 | T142: 12606 | U142: 650 | W142: 966.16 | X142: 483.08 | Y142: 137.1 | AC142: 1382 | AF142: 2968.34 | AG142: 10287.66 | AH142: 1932.32 | AJ142: 411.3 | AM142: 61.695 | AO142: 1382 | AQ142: 3787.315
G143: 2023-06-01 | H143: 1940 | I143: 3190 | J143: 1995 | K143: 2260 | M143: 3715 | N143: 586 | T143: 13686 | U143: 650 | W143: 966.16 | X143: 483.08 | Y143: 137.1 | AC143: 1382 | AD143: 35.86 | AF143: 3004.2 | AG143: 11331.8 | AH143: 1932.32 | AJ143: 411.3 | AM143: 61.695 | AO143: 1382 | AQ143: 3787.315
G144: 2023-07-01 | H144: 1940 | I144: 2040 | J144: 1995 | K144: 2260 | M144: 3715 | N144: 586 | T144: 12536 | U144: 650 | W144: 966.16 | X144: 483.08 | Y144: 190.3 | AC144: 1382 | AD144: 17.93 | AF144: 3039.47 | AG144: 10146.53 | AH144: 1932.32 | AJ144: 570.9 | AM144: 85.635 | AO144: 1382 | AQ144: 3970.855
G145: 2023-08-01 | H145: 1940 | I145: 2040 | J145: 1995 | K145: 2260 | M145: 3715 | N145: 586 | T145: 12536 | U145: 650 | W145: 966.16 | X145: 483.08 | Y145: 144.7 | AC145: 1382 | AD145: 17.93 | AF145: 2993.87 | AG145: 10192.13 | AH145: 1932.32 | AJ145: 434.1 | AM145: 65.115 | AO145: 1382 | AQ145: 3813.535
G146: 2023-09-01 | H146: 1940 | I146: 2040 | J146: 1995 | K146: 2260 | M146: 3715 | N146: 586 | T146: 12536 | U146: 650 | W146: 966.16 | X146: 483.08 | Y146: 144.7 | AC146: 1382 | AD146: 0 | AF146: 2975.94 | AG146: 10210.06 | AH146: 1932.32 | AJ146: 434.1 | AM146: 65.115 | AO146: 1382 | AQ146: 3813.535
G147: 2023-10-01 | H147: 1940 | I147: 2040 | J147: 1995 | K147: 2560 | M147: 3715 | N147: 586 | T147: 12836 | U147: 650 | W147: 966.16 | X147: 483.08 | Y147: 144.7 | AC147: 1382 | AF147: 2975.94 | AG147: 10510.06 | AH147: 1932.32 | AJ147: 434.1 | AM147: 65.115 | AO147: 1382 | AQ147: 3813.535
G148: 2023-11-01 | H148: 1940 | I148: 2040 | J148: 1995 | K148: 2260 | M148: 7615 | N148: 586 | T148: 16436 | U148: 650 | W148: 966.16 | X148: 483.08 | Y148: 144.7 | AC148: 1382 | AD148: 0 | AF148: 2975.94 | AG148: 14110.06 | AH148: 1932.32 | AJ148: 434.1 | AM148: 65.115 | AO148: 1382 | AQ148: 3813.535
G149: 2023-12-01 | H149: 0 | I149: 0 | J149: 0 | K149: 2260 | M149: 200 | N149: 586 | T149: 3046 | U149: 650 | W149: 966.16 | X149: 483.08 | Y149: 144.7 | AC149: 1382 | AD149: 0 | AF149: 2975.94 | AG149: 720.06 | AH149: 1932.32 | AJ149: 434.1 | AM149: 65.115 | AO149: 1382 | AQ149: 3813.535
G150: 汇总数 | H150: =SUM(H138:H149) -> 21340 | I150: 22690 | J150: 21945 | K150: 27995 | L150: 0 | M150: 44740 | N150: 7032 | T150: =SUM(T138:T149) -> 145742 | U150: 7800 | W150: =SUM(W138:W149) -> 11593.92 | X150: 5796.96 | Y150: 1784.4 | AC150: =SUM(AC138:AC149) -> 16584 | AD150: 172.7 | AF150: =SUM(AF138:AF149) -> 35931.98 | AG150: 117610.02 | AH150: 23187.84 | AJ150: =SUM(AJ138:AJ149) -> 5209.2 | AM150: =SUM(AM138:AM149) -> 781.38 | AO150: =SUM(AO138:AO149) -> 16584 | AQ150: =SUM(AQ138:AQ149) -> 45762.42
G151: 月平均 | H151: =H150/12 -> 1778.333333 | I151: 1890.833333 | J151: 1828.75 | K151: 2332.916667 | L151: 0 | M151: 3728.333333 | N151: 586 | T151: =T150/12 -> 12145.16667 | U151: 650 | W151: =W150/12 -> 966.16 | X151: 483.08 | Y151: 148.7 | AC151: =AC150/12 -> 1382 | AD151: 14.39166667 | AF151: =AF150/12 -> 2994.331667 | AG151: 9800.835 | AH151: 1932.32 | AJ151: =AJ150/12 -> 434.1 | AM151: =AM150/12 -> 65.115 | AO151: =AO150/12 -> 1382 | AQ151: =AQ150/12 -> 3813.535
A152: 11 | B152: 李 涛 | C152: 630104198001220019 | D152: 1980.1 | E152: 综合业务股股长 | F152: 中级经济师10级 | G152: 2023-01-01 | H152: 1940 | I152: 1860 | J152: 1995 | K152: 2255 | M152: 3670 | N152: 586 | T152: =H152+I152+J152+K152+L152+M152+N152+O152 -> 12306 | U152: 650 | W152: 979.68 | X152: 489.84 | Y152: 185.1 | AC152: 1382 | AD152: 77.25 | AF152: =W152+X152+Y152+AB152+AC152+AD152 -> 3113.87 | AG152: =T152+U152+V152-AF152 -> 9842.13 | AH152: =W152*2 -> 1959.36 | AJ152: 411.3 | AM152: 61.695 | AO152: =AC152 -> 1382 | AQ152: =AH152+AI152+AJ152+AK152+AL152+AM152+AN152+AO152+AP152 -> 3814.355
G153: 2023-02-01 | H153: 1940 | I153: 1860 | J153: 1995 | K153: 2255 | M153: 3670 | N153: 586 | T153: 12306 | U153: 650 | W153: 979.68 | X153: 489.84 | Y153: 137.1 | AC153: 1382 | AD153: 45.94 | AF153: 3034.56 | AG153: 9921.44 | AH153: 1959.36 | AJ153: =Y153*3 -> 411.3 | AM153: =Y153/0.02*0.009 -> 61.695 | AO153: 1382 | AQ153: 3814.355
G154: 2023-03-01 | H154: 1940 | I154: 1860 | J154: 1995 | K154: 2255 | M154: 3670 | N154: 586 | T154: 12306 | U154: 650 | W154: 979.68 | X154: 489.84 | Y154: 137.1 | AC154: 1382 | AD154: 45.94 | AF154: 3034.56 | AG154: 9921.44 | AH154: 1959.36 | AJ154: 411.3 | AM154: 61.695 | AO154: 1382 | AQ154: 3814.355
G155: 2023-04-01 | H155: 1940 | I155: 1860 | J155: 1995 | K155: 2255 | M155: 3670 | N155: 586 | T155: 12306 | U155: 650 | W155: 979.68 | X155: 489.84 | Y155: 137.1 | AC155: 1382 | AD155: 45.94 | AF155: 3034.56 | AG155: 9921.44 | AH155: 1959.36 | AJ155: 411.3 | AM155: 61.695 | AO155: 1382 | AQ155: 3814.355
G156: 2023-05-01 | H156: 1940 | I156: 1860 | J156: 1995 | K156: 2255 | M156: 3670 | N156: 586 | T156: 12306 | U156: 650 | W156: 979.68 | X156: 489.84 | Y156: 137.1 | AC156: 1382 | AF156: 2988.62 | AG156: 9967.38 | AH156: 1959.36 | AJ156: 411.3 | AM156: 61.695 | AO156: 1382 | AQ156: 3814.355
G157: 2023-06-01 | H157: 1940 | I157: 3190 | J157: 1995 | K157: 2260 | M157: 3715 | N157: 586 | T157: 13686 | U157: 650 | W157: 979.68 | X157: 489.84 | Y157: 137.1 | AC157: 1382 | AD157: 91.89 | AF157: 3080.51 | AG157: 11255.49 | AH157: 1959.36 | AJ157: 411.3 | AM157: 61.695 | AO157: 1382 | AQ157: 3814.355
G158: 2023-07-01 | H158: 1940 | I158: 2040 | J158: 1995 | K158: 2560 | M158: 3715 | N158: 586 | T158: 12836 | U158: 650 | W158: 979.68 | X158: 489.84 | Y158: 190.3 | AC158: 1382 | AD158: 45.94 | AF158: 3087.76 | AG158: 10398.24 | AH158: 1959.36 | AJ158: 570.9 | AM158: 85.635 | AO158: 1382 | AQ158: 3997.895
G159: 2023-08-01 | H159: 1940 | I159: 2040 | J159: 1995 | K159: 2260 | M159: 3715 | N159: 586 | T159: 12536 | U159: 650 | W159: 979.68 | X159: 489.84 | Y159: 144.7 | AC159: 1382 | AD159: 45.94 | AF159: 3042.16 | AG159: 10143.84 | AH159: 1959.36 | AJ159: 434.1 | AM159: 65.115 | AO159: 1382 | AQ159: 3840.575
G160: 2023-09-01 | H160: 1940 | I160: 2040 | J160: 1995 | K160: 2260 | M160: 3715 | N160: 586 | T160: 12536 | U160: 650 | W160: 979.68 | X160: 489.84 | Y160: 144.7 | AC160: 1382 | AD160: 0 | AF160: 2996.22 | AG160: 10189.78 | AH160: 1959.36 | AJ160: 434.1 | AM160: 65.115 | AO160: 1382 | AQ160: 3840.575
G161: 2023-10-01 | H161: 1940 | I161: 2040 | J161: 1995 | K161: 2560 | M161: 3715 | N161: 586 | T161: 12836 | U161: 650 | W161: 979.68 | X161: 489.84 | Y161: 144.7 | AC161: 1382 | AF161: 2996.22 | AG161: 10489.78 | AH161: 1959.36 | AJ161: 434.1 | AM161: 65.115 | AO161: 1382 | AQ161: 3840.575
G162: 2023-11-01 | H162: 1940 | I162: 2040 | J162: 1995 | K162: 2260 | M162: 7615 | N162: 586 | T162: 16436 | U162: 650 | W162: 979.68 | X162: 489.84 | Y162: 144.7 | AC162: 1382 | AD162: 0 | AF162: 2996.22 | AG162: 14089.78 | AH162: 1959.36 | AJ162: 434.1 | AM162: 65.115 | AO162: 1382 | AQ162: 3840.575
G163: 2023-12-01 | H163: 0 | I163: 0 | J163: 0 | K163: 2260 | M163: 200 | N163: 586 | T163: 3046 | U163: 650 | W163: 979.68 | X163: 489.84 | Y163: 144.7 | AC163: 1382 | AD163: 0 | AF163: 2996.22 | AG163: 699.78 | AH163: 1959.36 | AJ163: 434.1 | AM163: 65.115 | AO163: 1382 | AQ163: 3840.575
G164: 汇总数 | H164: =SUM(H152:H163) -> 21340 | I164: 22690 | J164: 21945 | K164: 27695 | L164: 0 | M164: 44740 | N164: 7032 | T164: =SUM(T152:T163) -> 145442 | U164: 7800 | W164: =SUM(W152:W163) -> 11756.16 | X164: 5878.08 | Y164: 1784.4 | AC164: =SUM(AC152:AC163) -> 16584 | AD164: 398.84 | AF164: =SUM(AF152:AF163) -> 36401.48 | AG164: 116840.52 | AH164: 23512.32 | AJ164: =SUM(AJ152:AJ163) -> 5209.2 | AM164: =SUM(AM152:AM163) -> 781.38 | AO164: =SUM(AO152:AO163) -> 16584 | AQ164: =SUM(AQ152:AQ163) -> 46086.9
G165: 月平均 | H165: =H164/12 -> 1778.333333 | I165: 1890.833333 | J165: 1828.75 | K165: 2307.916667 | L165: 0 | M165: 3728.333333 | N165: 586 | T165: =T164/12 -> 12120.16667 | U165: 650 | W165: =W164/12 -> 979.68 | X165: 489.84 | Y165: 148.7 | AC165: =AC164/12 -> 1382 | AD165: 33.23666667 | AF165: =AF164/12 -> 3033.456667 | AG165: 9736.71 | AH165: 1959.36 | AJ165: =AJ164/12 -> 434.1 | AM165: =AM164/12 -> 65.115 | AO165: =AO164/12 -> 1382 | AQ165: =AQ164/12 -> 3840.575
A166: 12 | B166: 白燕章 | C166: 630102197912132020 | D166: 1979.12 | E166: 国库会计股副股长 | F166: 中级经济师10级 | G166: 2023-01-01 | H166: 1940 | I166: 1860 | J166: 1995 | K166: 2050 | M166: 3680 | N166: 576.25 | T166: =H166+I166+J166+K166+L166+M166+N166+O166 -> 12101.25 | U166: 650 | W166: 975.04 | X166: 487.52 | Y166: 185.1 | AC166: 1359 | AD166: 87.94 | AF166: =W166+X166+Y166+AB166+AC166+AD166 -> 3094.6 | AG166: =T166+U166+V166-AF166 -> 9656.65 | AH166: =W166*2 -> 1950.08 | AJ166: 411.3 | AM166: 61.695 | AO166: =AC166 -> 1359 | AQ166: =AH166+AI166+AJ166+AK166+AL166+AM166+AN166+AO166 -> 3782.075
G167: 2023-02-01 | H167: 1940 | I167: 1860 | J167: 1995 | K167: 2050 | M167: 3680 | N167: 576.25 | T167: 12101.25 | U167: 650 | W167: 975.04 | X167: 487.52 | Y167: 137.1 | AC167: 1359 | AD167: 70.99 | AF167: 3029.65 | AG167: 9721.6 | AH167: 1950.08 | AJ167: =Y167*3 -> 411.3 | AM167: =Y167/0.02*0.009 -> 61.695 | AO167: 1359 | AQ167: 3782.075
G168: 2023-03-01 | H168: 1940 | I168: 1860 | J168: 1995 | K168: 2050 | M168: 3680 | N168: 576.25 | T168: 12101.25 | U168: 650 | W168: 975.04 | X168: 487.52 | Y168: 137.1 | AC168: 1359 | AD168: 70.99 | AF168: 3029.65 | AG168: 9721.6 | AH168: 1950.08 | AJ168: 411.3 | AM168: 61.695 | AO168: 1359 | AQ168: 3782.075
G169: 2023-04-01 | H169: 1940 | I169: 1860 | J169: 1995 | K169: 2050 | M169: 3680 | N169: 576.25 | T169: 12101.25 | U169: 650 | W169: 975.04 | X169: 487.52 | Y169: 137.1 | AC169: 1359 | AD169: 70.99 | AF169: 3029.65 | AG169: 9721.6 | AH169: 1950.08 | AJ169: 411.3 | AM169: 61.695 | AO169: 1359 | AQ169: 3782.075
G170: 2023-05-01 | H170: 1940 | I170: 1860 | J170: 1995 | K170: 2050 | M170: 3680 | N170: 576.25 | T170: 12101.25 | U170: 650 | W170: 975.04 | X170: 487.52 | Y170: 137.1 | AC170: 1359 | AF170: 2958.66 | AG170: 9792.59 | AH170: 1950.08 | AJ170: 411.3 | AM170: 61.695 | AO170: 1359 | AQ170: 3782.075
G171: 2023-06-01 | H171: 1940 | I171: 2425 | J171: 1995 | K171: 2055 | M171: 3680 | N171: 576.25 | T171: 12671.25 | U171: 650 | W171: 975.04 | X171: 487.52 | Y171: 137.1 | AC171: 1359 | AD171: 141.98 | AF171: 3100.64 | AG171: 10220.61 | AH171: 1950.08 | AJ171: 411.3 | AM171: 61.695 | AO171: 1359 | AQ171: 3782.075
G172: 2023-07-01 | H172: 1940 | I172: 1950 | J172: 1995 | K172: 2055 | M172: 3680 | N172: 576.25 | T172: 12196.25 | U172: 650 | W172: 975.04 | X172: 487.52 | Y172: 190.3 | AC172: 1359 | AD172: 70.99 | AF172: 3082.85 | AG172: 9763.4 | AH172: 1950.08 | AJ172: 570.9 | AM172: 85.635 | AO172: 1359 | AQ172: 3965.615
G173: 2023-08-01 | H173: 1940 | I173: 1950 | J173: 1995 | K173: 2055 | M173: 3680 | N173: 576.25 | T173: 12196.25 | U173: 650 | W173: 975.04 | X173: 487.52 | Y173: 144.7 | AC173: 1359 | AD173: 70.99 | AF173: 3037.25 | AG173: 9809 | AH173: 1950.08 | AJ173: 434.1 | AM173: 65.115 | AO173: 1359 | AQ173: 3808.295
G174: 2023-09-01 | H174: 1940 | I174: 1950 | J174: 1995 | K174: 2055 | M174: 3680 | N174: 576.25 | T174: 12196.25 | U174: 650 | W174: 975.04 | X174: 487.52 | Y174: 144.7 | AC174: 1359 | AD174: 0 | AF174: 2966.26 | AG174: 9879.99 | AH174: 1950.08 | AJ174: 434.1 | AM174: 65.115 | AO174: 1359 | AQ174: 3808.295
G175: 2023-10-01 | H175: 1940 | I175: 1950 | J175: 1995 | K175: 2055 | M175: 3680 | N175: 576.25 | T175: 12196.25 | U175: 650 | W175: 975.04 | X175: 487.52 | Y175: 144.7 | AC175: 1359 | AF175: 2966.26 | AG175: 9879.99 | AH175: 1950.08 | AJ175: 434.1 | AM175: 65.115 | AO175: 1359 | AQ175: 3808.295
G176: 2023-11-01 | H176: 1940 | I176: 1950 | J176: 1995 | K176: 2055 | M176: 7580 | N176: 576.25 | T176: 16096.25 | U176: 650 | W176: 975.04 | X176: 487.52 | Y176: 144.7 | AC176: 1359 | AD176: 0 | AF176: 2966.26 | AG176: 13779.99 | AH176: 1950.08 | AJ176: 434.1 | AM176: 65.115 | AO176: 1359 | AQ176: 3808.295
G177: 2023-12-01 | H177: 0 | I177: 0 | J177: 0 | K177: 2055 | M177: 200 | N177: 576.25 | T177: 2831.25 | U177: 650 | W177: 975.04 | X177: 487.52 | Y177: 144.7 | AC177: 1359 | AD177: 0 | AF177: 2966.26 | AG177: 514.99 | AH177: 1950.08 | AJ177: 434.1 | AM177: 65.115 | AO177: 1359 | AQ177: 3808.295
G178: 汇总数 | H178: =SUM(H166:H177) -> 21340 | I178: 21475 | J178: 21945 | K178: 24635 | L178: 0 | M178: 44580 | N178: 6915 | T178: =SUM(T166:T177) -> 140890 | U178: 7800 | W178: =SUM(W166:W177) -> 11700.48 | X178: 5850.24 | Y178: 1784.4 | AC178: =SUM(AC166:AC177) -> 16308 | AD178: 584.87 | AF178: =SUM(AF166:AF177) -> 36227.99 | AG178: 112462.01 | AH178: 23400.96 | AJ178: =SUM(AJ166:AJ177) -> 5209.2 | AM178: =SUM(AM166:AM177) -> 781.38 | AO178: =SUM(AO166:AO177) -> 16308 | AQ178: =SUM(AQ166:AQ177) -> 45699.54
G179: 月平均 | H179: =H178/12 -> 1778.333333 | I179: 1789.583333 | J179: 1828.75 | K179: 2052.916667 | L179: 0 | M179: 3715 | N179: 576.25 | T179: =T178/12 -> 11740.83333 | U179: 650 | W179: =W178/12 -> 975.04 | X179: 487.52 | Y179: 148.7 | AC179: =AC178/12 -> 1359 | AD179: 48.73916667 | AF179: =AF178/12 -> 3018.999167 | AG179: 9371.834167 | AH179: 1950.08 | AJ179: =AJ178/12 -> 434.1 | AM179: =AM178/12 -> 65.115 | AO179: =AO178/12 -> 1359 | AQ179: =AQ178/12 -> 3808.295
A180: 13 | B180: 虎婷婷 | C180: 632124198911290021 | D180: 1989.11 | E180: 科员 | F180: 中级经济师10级 | G180: 2023-01-01 | H180: 1940 | I180: 1283 | J180: 1885 | K180: 1810 | M180: 3635 | N180: 527.65 | T180: =H180+I180+J180+K180+L180+M180+N180+O180 -> 11080.65 | U180: 650 | W180: 883.84 | X180: 441.92 | Y180: 171.74 | AC180: 1242 | AD180: 90.51 | AF180: =W180+X180+Y180+AB180+AC180+AD180 -> 2830.01 | AG180: =T180+U180+V180-AF180 -> 8900.64 | AH180: =W180*2 -> 1767.68 | AJ180: 371.22 | AM180: 55.683 | AO180: =AC180 -> 1242 | AQ180: =AH180+AI180+AJ180+AK180+AL180+AM180+AN180+AO180 -> 3436.583
G181: 2023-02-01 | H181: 1940 | I181: 1283 | J181: 1885 | K181: 1810 | M181: 3635 | N181: 527.65 | T181: 11080.65 | U181: 650 | W181: 883.84 | X181: 441.92 | Y181: 123.74 | AC181: 1242 | AD181: 49.85 | AF181: 2741.35 | AG181: 8989.3 | AH181: 1767.68 | AJ181: =Y181*3 -> 371.22 | AM181: =Y181/0.02*0.009 -> 55.683 | AO181: 1242 | AQ181: 3436.583
G182: 2023-03-01 | H182: 1940 | I182: 1283 | J182: 1885 | K182: 1810 | M182: 3635 | N182: 527.65 | T182: 11080.65 | U182: 650 | W182: 883.84 | X182: 441.92 | Y182: 123.74 | AC182: 1242 | AD182: 49.85 | AF182: 2741.35 | AG182: 8989.3 | AH182: 1767.68 | AJ182: 371.22 | AM182: 55.683 | AO182: 1242 | AQ182: 3436.583
G183: 2023-04-01 | H183: 1940 | I183: 1283 | J183: 1885 | K183: 1810 | M183: 3635 | N183: 527.65 | T183: 11080.65 | U183: 650 | W183: 883.84 | X183: 441.92 | Y183: 123.74 | AC183: 1242 | AD183: 49.85 | AF183: 2741.35 | AG183: 8989.3 | AH183: 1767.68 | AJ183: 371.22 | AM183: 55.683 | AO183: 1242 | AQ183: 3436.583
G184: 2023-05-01 | H184: 1940 | I184: 1283 | J184: 1885 | K184: 1810 | M184: 3635 | N184: 527.65 | T184: 11080.65 | U184: 650 | W184: 883.84 | X184: 441.92 | Y184: 123.74 | AC184: 1242 | AF184: 2691.5 | AG184: 9039.15 | AH184: 1767.68 | AJ184: 371.22 | AM184: 55.683 | AO184: 1242 | AQ184: 3436.583
G185: 2023-06-01 | H185: 1940 | I185: 1752 | J185: 1885 | K185: 1815 | M185: 3635 | N185: 527.65 | T185: 11554.65 | U185: 650 | W185: 883.84 | X185: 441.92 | Y185: 123.74 | AC185: 1242 | AD185: 99.69 | AF185: 2791.19 | AG185: 9413.46 | AH185: 1767.68 | AJ185: 371.22 | AM185: 55.683 | AO185: 1242 | AQ185: 3436.583
G186: 2023-07-01 | H186: 1940 | I186: 1357 | J186: 1885 | K186: 1815 | M186: 3635 | N186: 527.65 | T186: 11159.65 | U186: 650 | W186: 883.84 | X186: 441.92 | Y186: 174.28 | AC186: 1242 | AD186: 49.84 | AF186: 2791.88 | AG186: 9017.77 | AH186: 1767.68 | AJ186: 522.84 | AM186: 78.426 | AO186: 1242 | AQ186: 3610.946
G187: 2023-08-01 | H187: 1940 | I187: 1357 | J187: 1885 | K187: 1815 | M187: 3635 | N187: 527.65 | T187: 11159.65 | U187: 650 | W187: 883.84 | X187: 441.92 | Y187: 130.96 | AC187: 1242 | AD187: 49.85 | AF187: 2748.57 | AG187: 9061.08 | AH187: 1767.68 | AJ187: 392.88 | AM187: 58.932 | AO187: 1242 | AQ187: 3461.492
G188: 2023-09-01 | H188: 1940 | I188: 1357 | J188: 1885 | K188: 1815 | M188: 3635 | N188: 527.65 | T188: 11159.65 | U188: 650 | W188: 883.84 | X188: 441.92 | Y188: 130.96 | AC188: 1242 | AD188: 0 | AF188: 2698.72 | AG188: 9110.93 | AH188: 1767.68 | AJ188: 392.88 | AM188: 58.932 | AO188: 1242 | AQ188: 3461.492
G189: 2023-10-01 | H189: 1940 | I189: 1357 | J189: 1885 | K189: 1815 | M189: 3635 | N189: 527.65 | T189: 11159.65 | U189: 650 | W189: 883.84 | X189: 441.92 | Y189: 130.96 | AC189: 1242 | AF189: 2698.72 | AG189: 9110.93 | AH189: 1767.68 | AJ189: 392.88 | AM189: 58.932 | AO189: 1242 | AQ189: 3461.492
G190: 2023-11-01 | H190: 1940 | I190: 1357 | J190: 1885 | K190: 1815 | M190: 7535 | N190: 527.65 | T190: 15059.65 | U190: 650 | W190: 883.84 | X190: 441.92 | Y190: 130.96 | AC190: 1242 | AD190: 0 | AF190: 2698.72 | AG190: 13010.93 | AH190: 1767.68 | AJ190: 392.88 | AM190: 58.932 | AO190: 1242 | AQ190: 3461.492
G191: 2023-12-01 | H191: 0 | I191: 0 | J191: 0 | K191: 1815 | M191: 200 | N191: 527.65 | T191: 2542.65 | U191: 650 | W191: 883.84 | X191: 441.92 | Y191: 130.96 | AC191: 1242 | AD191: 34.38 | AF191: 2733.1 | AG191: 459.55 | AH191: 1767.68 | AJ191: 392.88 | AM191: 58.932 | AO191: 1242 | AQ191: 3461.492
G192: 汇总数 | H192: =SUM(H180:H191) -> 21340 | I192: 14952 | J192: 20735 | K192: 21755 | L192: 0 | M192: 44085 | N192: 6331.8 | T192: =SUM(T180:T191) -> 129198.8 | U192: 7800 | W192: =SUM(W180:W191) -> 10606.08 | X192: 5303.04 | Y192: 1619.52 | AC192: =SUM(AC180:AC191) -> 14904 | AD192: 473.82 | AF192: =SUM(AF180:AF191) -> 32906.46 | AG192: 104092.34 | AH192: 21212.16 | AJ192: =SUM(AJ180:AJ191) -> 4714.56 | AM192: =SUM(AM180:AM191) -> 707.184 | AO192: =SUM(AO180:AO191) -> 14904 | AQ192: =SUM(AQ180:AQ191) -> 41537.904
G193: 月平均 | H193: =H192/12 -> 1778.333333 | I193: 1246 | J193: 1727.916667 | K193: 1812.916667 | L193: 0 | M193: 3673.75 | N193: 527.65 | T193: =T192/12 -> 10766.56667 | U193: 650 | W193: =W192/12 -> 883.84 | X193: 441.92 | Y193: 134.96 | AC193: =AC192/12 -> 1242 | AD193: 39.485 | AF193: =AF192/12 -> 2742.205 | AG193: 8674.361667 | AH193: 1767.68 | AJ193: =AJ192/12 -> 392.88 | AM193: =AM192/12 -> 58.932 | AO193: =AO192/12 -> 1242 | AQ193: =AQ192/12 -> 3461.492
A194: 14 | B194: 季生有 | C194: 632124198909243031 | D194: 1989.9 | E194: 科员 | F194: 中级经济师10级 | G194: 2023-01-01 | H194: 1940 | I194: 1070 | J194: 1885 | K194: 1795 | M194: 3580 | N194: 513.5 | T194: =H194+I194+J194+K194+L194+M194+N194+O194 -> 10783.5 | U194: 650 | W194: 877.36 | X194: 438.68 | Y194: 166.7 | AC194: 1208 | AD194: 126.81 | AF194: =W194+X194+Y194+AB194+AC194+AD194 -> 2817.55 | AG194: =T194+U194+V194-AF194 -> 8615.95 | AH194: =W194*2 -> 1754.72 | AJ194: 356.1 | AM194: 53.415 | AO194: =AC194 -> 1208 | AQ194: =AH194+AI194+AJ194+AK194+AL194+AM194+AN194+AO194 -> 3372.235
G195: 2023-02-01 | H195: 1940 | I195: 1070 | J195: 1885 | K195: 1795 | M195: 3580 | N195: 513.5 | T195: 10783.5 | U195: 650 | W195: 877.36 | X195: 438.68 | Y195: 118.7 | AC195: 1208 | AD195: 72.82 | AF195: 2715.56 | AG195: 8717.94 | AH195: 1754.72 | AJ195: =Y195*3 -> 356.1 | AM195: =Y195/0.02*0.009 -> 53.415 | AO195: 1208 | AQ195: 3372.235
G196: 2023-03-01 | H196: 1940 | I196: 1070 | J196: 1885 | K196: 1795 | M196: 3580 | N196: 513.5 | T196: 10783.5 | U196: 650 | W196: 877.36 | X196: 438.68 | Y196: 118.7 | AC196: 1208 | AD196: 72.82 | AF196: 2715.56 | AG196: 8717.94 | AH196: 1754.72 | AJ196: 356.1 | AM196: 53.415 | AO196: 1208 | AQ196: 3372.235
G197: 2023-04-01 | H197: 1940 | I197: 1070 | J197: 1885 | K197: 1795 | M197: 3580 | N197: 513.5 | T197: 10783.5 | U197: 650 | W197: 877.36 | X197: 438.68 | Y197: 118.7 | AC197: 1208 | AD197: 72.81 | AF197: 2715.55 | AG197: 8717.95 | AH197: 1754.72 | AJ197: 356.1 | AM197: 53.415 | AO197: 1208 | AQ197: 3372.235
G198: 2023-05-01 | H198: 1940 | I198: 1070 | J198: 1885 | K198: 1795 | M198: 3580 | N198: 513.5 | T198: 10783.5 | U198: 650 | W198: 877.36 | X198: 438.68 | Y198: 118.7 | AC198: 1208 | AF198: 2642.74 | AG198: 8790.76 | AH198: 1754.72 | AJ198: 356.1 | AM198: 53.415 | AO198: 1208 | AQ198: 3372.235
G199: 2023-06-01 | H199: 1940 | I199: 1497 | J199: 1885 | K199: 2100 | M199: 3580 | N199: 513.5 | T199: 11515.5 | U199: 650 | W199: 877.36 | X199: 438.68 | Y199: 118.7 | AC199: 1208 | AD199: 145.64 | AF199: 2788.38 | AG199: 9377.12 | AH199: 1754.72 | AJ199: 356.1 | AM199: 53.415 | AO199: 1208 | AQ199: 3372.235
G200: 2023-07-01 | H200: 1940 | I200: 1137 | J200: 1885 | K200: 1800 | M200: 3580 | N200: 513.5 | T200: 10855.5 | U200: 650 | W200: 877.36 | X200: 438.68 | Y200: 174.7 | AC200: 1208 | AD200: 72.82 | AF200: 2771.56 | AG200: 8733.94 | AH200: 1754.72 | AJ200: 524.1 | AM200: 78.615 | AO200: 1208 | AQ200: 3565.435
G201: 2023-08-01 | H201: 1940 | I201: 1137 | J201: 1885 | K201: 2100 | M201: 3580 | N201: 513.5 | T201: 11155.5 | U201: 650 | W201: 877.36 | X201: 438.68 | Y201: 126.7 | AC201: 1208 | AD201: 72.81 | AF201: 2723.55 | AG201: 9081.95 | AH201: 1754.72 | AJ201: 380.1 | AM201: 57.015 | AO201: 1208 | AQ201: 3399.835
... 119 more rows

Sheet 聘用制员工 (hidden)
A1: 附件2
A2: 湟源县支行聘用制员工工资待遇（全口径）明细表
A4: 填报单位：人民银行湟源县支行（章） | I4: 市分行： (盖章） | R4: 监管分局： (盖章） | AA4: 省分行： (盖章） | AI4: 监管局： (盖章）
A5: 支行主要负责人： （签字） | I5: 市分行主要负责人： （签字） | R5: 监管分局主要负责人： （签字） | AA5: 省分行主要负责人： （签字） | AI5: 监管局主要负责人： （签字）
AS6: 单位：元
A7: 填报单位：人民银行XX支行（章） | L7: 市分行： (盖章） | W7: 监管分局： (盖章） | AE7: 省分行： (盖章） | AL7: 监管局： (盖章）
A8: 支行主要负责人： （签字） | L8: 市分行主要负责人： （签字） | W8: 监管分局主要负责人： （签字） | AE8: 省分行主要负责人： （签字） | AL8: 监管局主要负责人： （签字）
AS9: 单位：元
A10: 序号 | B10: 姓名 | C10: 身 份 证 号 | D10: 出 生 年 月 | E10: 岗位名称 | F10: 岗位等级 | G10: 填报月份 | H10: 全口径工资待遇项目 | U10: 公务用车改革补贴 | V10: 其他实发待遇项目（如有） | W10: 工资个人扣款项目 | AH10: 实发待遇 | AI10: 单位缴款项目 | AT10: 备注
H11: 岗位工资 | I11: 年功工资 | J11: 绩效工资 | K11: 补贴类项目 | L11: 月度奖励绩效 （奖励性工资） | M11: 季度/半年度/年度发放项目 | N11: 考核奖励 | O11: 其他项目小计 | T11: 应发合计 | W11: 养老保险缴费 | X11: 职业年金缴费 | Y11: 医疗保险 | Z11: 公务员补充医疗 （如有） | AA11: 大病、重疾 （如有） | AB11: 失业保险 | AC11: 工会费（如有） | AD11: 住房公积金 | AE11: 个人所得税 | AF11: 其他项目 （具体名称） | AG11: 代扣代缴合计 | AI11: 养老保险缴费 | AJ11: 职业年金缴费 | AK11: 医疗保险 | AL11: 公务员补充医疗 （如有） | AM11: 大病、重疾 （如有） | AN11: 生育保险 | AO11: 失业保险 | AP11: 工伤保险 | AQ11: 住房公积金 | AR11: 其他项目 （具体名称） | AS11: 单位缴款项目合计
P12: 其他项目1 | Q12: 其他项目2 | R12: 其他项目3 | S12: 其余项目小计
A13: 列 | H13: 1 | I13: 2 | J13: 3 | K13: 4 | L13: 5 | M13: 6 | N13: 7 | O13: 8=9+…+12 | P13: 9 | Q13: 10 | R13: 11 | S13: 12 | T13: 13=1+…+8 | U13: 14 | V13: 15 | W13: 16 | X13: 17 | Y13: 18 | Z13: 19 | AA13: 20 | AB13: 21 | AC13: 22 | AD13: 23 | AE13: 24 | AF13: 25 | AG13: 26=16+…+25 | AH13: 27=13+14+15-26 | AI13: 28 | AJ13: 29 | AK13: 30 | AL13: 31 | AM13: 32 | AN13: 33 | AO13: 34 | AP13: 35 | AQ13: 36 | AR13: 37 | AS13: 38=28+…+37 | AT13: 39
A14: 支行聘用制员工工资待遇总计 | G14: 汇总数 | H14: =H27+H41+H55+H69 -> 30024 | I14: 5760 | J14: 224076 | K14: 15600 | T14: =T27+T41+T55+T69 -> 275460 | U14: 31200 | W14: =W27+W41+W55+W69 -> 22182.72 | Y14: =Y27+Y41+Y55+Y69 -> 5297 | AB14: =AB27+AB41+AB55+AB69 -> 1386.6 | AD14: =AD27+AD41+AD55+AD69 -> 31200 | AG14: =AG27+AG41+AG55+AG69 -> 60066.32 | AH14: 246593.68 | AI14: 44365.44 | AK14: =AK27+AK41+AK55+AK69 -> 15881 | AL14: 0 | AN14: =AN27+AN41+AN55+AN69 -> 2389 | AO14: 1386.6 | AP14: 277.31 | AQ14: 31200 | AR14: 0 | AS14: 95499.35
A15: 1 | B15: 张岩礼 | C15: 632125198602082612 | D15: 1986.02 | E15: 文电综合 | F15: 十级 | G15: 2023-01-01 | H15: 624 | I15: 60 | J15: 4680 | T15: =H15+I15+J15+O15+K15 -> 5364 | U15: 650 | W15: 405.76 | Y15: 101 | AB15: 25.36 | AD15: 644 | AG15: =SUM(W15:AF15) -> 1176.12 | AH15: =T15+U15+V15-AG15 -> 4837.88 | AI15: =W15/0.08*0.16 -> 811.52 | AK15: 304 | AN15: 46 | AO15: =AB15 -> 25.36 | AP15: 5.07 | AQ15: =AD15 -> 644 | AS15: =SUM(AI15:AR15) -> 1835.95
G16: 2023-02-01 | H16: 624 | I16: 60 | J16: 4680 | T16: 5364 | U16: 650 | W16: 405.76 | Y16: 101 | AB16: 25.36 | AD16: 644 | AG16: 1176.12 | AH16: 4837.88 | AI16: 811.52 | AK16: 304 | AN16: 46 | AO16: 25.36 | AP16: 5.07 | AQ16: 644 | AS16: 1835.95
G17: 2023-03-01 | H17: 624 | I17: 60 | J17: 4680 | T17: 5364 | U17: 650 | W17: 405.76 | Y17: 101 | AB17: 25.36 | AD17: 644 | AG17: 1176.12 | AH17: 4837.88 | AI17: 811.52 | AK17: 304 | AN17: 46 | AO17: 25.36 | AP17: 5.07 | AQ17: 644 | AS17: 1835.95
G18: 2023-04-01 | H18: 624 | I18: 60 | J18: 4680 | T18: 5364 | U18: 650 | W18: 405.76 | Y18: 101 | AB18: 25.36 | AD18: 644 | AG18: 1176.12 | AH18: 4837.88 | AI18: 811.52 | AK18: 304 | AN18: 46 | AO18: 25.36 | AP18: 5.07 | AQ18: 644 | AS18: 1835.95
G19: 2023-05-01 | H19: 624 | I19: 60 | J19: 4680 | T19: 5364 | U19: 650 | W19: 405.76 | Y19: 101 | AB19: 25.36 | AD19: 644 | AG19: 1176.12 | AH19: 4837.88 | AI19: 811.52 | AK19: 304 | AN19: 46 | AO19: 25.36 | AP19: 5.07 | AQ19: 644 | AS19: 1835.95
G20: 2023-06-01 | H20: 624 | I20: 180 | J20: 4680 | T20: 5484 | U20: 650 | W20: 405.76 | Y20: 101 | AB20: 25.36 | AD20: 644 | AG20: 1176.12 | AH20: 4957.88 | AI20: 811.52 | AK20: 304 | AN20: 46 | AO20: 25.36 | AP20: 5.07 | AQ20: 644 | AS20: 1835.95
G21: 2023-07-01 | H21: 624 | I21: 80 | J21: 4680 | T21: 5384 | U21: 650 | W21: 405.76 | Y21: 101 | AB21: 25.36 | AD21: 644 | AG21: 1176.12 | AH21: 4857.88 | AI21: 811.52 | AK21: 304 | AN21: 46 | AO21: 25.36 | AP21: 5.07 | AQ21: 644 | AS21: 1835.95
G22: 2023-08-01 | H22: 624 | I22: 80 | J22: 4680 | T22: 5384 | U22: 650 | W22: 899.2 | Y22: 117 | AB22: 56.21 | AD22: 644 | AG22: 1716.41 | AH22: 4317.59 | AI22: 1798.4 | AK22: =Y22*3 -> 351 | AN22: 53 | AO22: 56.21 | AP22: 11.02 | AQ22: 644 | AS22: 2913.63
G23: 2023-09-01 | H23: 624 | I23: 80 | J23: 4680 | T23: 5384 | U23: 650 | W23: 467.44 | Y23: 117 | AB23: 29.22 | AD23: 644 | AG23: 1257.66 | AH23: 4776.34 | AI23: 934.88 | AK23: =Y23/0.02*0.06 -> 351 | AN23: 53 | AO23: 29.22 | AP23: 5.8 | AQ23: 644 | AS23: 2017.9
G24: 2023-10-01 | H24: 624 | I24: 80 | J24: 4680 | T24: 5384 | U24: 650 | W24: 467.44 | Y24: 117 | AB24: 29.22 | AD24: 644 | AG24: 1257.66 | AH24: 4776.34 | AI24: 934.88 | AK24: 351 | AN24: 53 | AO24: 29.22 | AP24: 5.8 | AQ24: 644 | AS24: 2017.9
G25: 2023-11-01 | H25: 624 | I25: 80 | J25: 4680 | K25: 3900 | T25: 9284 | U25: 650 | W25: 467.44 | Y25: 117 | AB25: 29.22 | AD25: 644 | AG25: 1257.66 | AH25: 8676.34 | AI25: 934.88 | AK25: 351 | AN25: 53 | AO25: 29.22 | AP25: 5.8 | AQ25: 644 | AS25: 2017.9
G26: 2023-12-01 | H26: 624 | I26: 80 | J26: 4680 | T26: 5384 | U26: 650 | W26: 467.44 | Y26: 117 | AB26: 29.22 | AD26: 644 | AG26: 1257.66 | AH26: 4776.34 | AI26: 934.88 | AK26: 351 | AN26: 53 | AO26: 29.22 | AP26: 5.8 | AQ26: 644 | AS26: 2017.9
G27: 汇总数 | H27: =SUM(H15:H26) -> 7488 | I27: 960 | J27: 56160 | K27: 3900 | T27: =SUM(T15:T26) -> 68508 | U27: 7800 | W27: =SUM(W15:W26) -> 5609.28 | Y27: =SUM(Y15:Y26) -> 1292 | AB27: =SUM(AB15:AB26) -> 350.61 | AD27: =SUM(AD15:AD26) -> 7728 | AG27: =SUM(AG15:AG26) -> 14979.89 | AH27: 61328.11 | AI27: 11218.56 | AK27: =SUM(AK15:AK26) -> 3883 | AN27: =SUM(AN15:AN26) -> 587 | AO27: 350.61 | AP27: 69.71 | AQ27: 7728 | AS27: =SUM(AS15:AS26) -> 23836.88
G28: 月平均 | H28: =H27/12 -> 624 | I28: 80 | J28: 4680 | K28: 325 | T28: =T27/12 -> 5709 | U28: 650 | W28: =W27/12 -> 467.44 | Y28: =Y27/12 -> 107.6666667 | AB28: =AB27/12 -> 29.2175 | AD28: =AD27/12 -> 644 | AG28: =AG27/12 -> 1248.324167 | AH28: 5110.675833 | AI28: 934.88 | AK28: =AK27/12 -> 323.5833333 | AN28: =AN27/12 -> 48.91666667 | AO28: 29.2175 | AP28: 5.809166667 | AQ28: 644 | AS28: =AS27/12 -> 1986.406667
A29: 2 | B29: 霍建敏 | C29: 632223198912060024 | D29: 1989.12 | E29: 国库核算 | F29: 八级 | G29: 2023-01-01 | H29: 690 | I29: 160 | J29: 4071 | T29: =H29+I29+J29+O29+K29 -> 4921 | U29: 650 | W29: 493.92 | Y29: 123 | AB29: 30.87 | AD29: 723 | AG29: =SUM(W29:AF29) -> 1370.79 | AH29: =T29+U29+V29-AG29 -> 4200.21 | AI29: =W29/0.08*0.16 -> 987.84 | AK29: 370 | AN29: 56 | AO29: =AB29 -> 30.87 | AP29: 6.17 | AQ29: =AD29 -> 723 | AS29: =SUM(AI29:AR29) -> 2173.88
G30: 2023-02-01 | H30: 690 | I30: 160 | J30: 5175 | T30: 6025 | U30: 650 | W30: 493.92 | Y30: 123 | AB30: 30.87 | AD30: 723 | AG30: 1370.79 | AH30: 5304.21 | AI30: 987.84 | AK30: 370 | AN30: 56 | AO30: 30.87 | AP30: 6.17 | AQ30: 723 | AS30: 2173.88
G31: 2023-03-01 | H31: 690 | I31: 160 | J31: 5175 | T31: 6025 | U31: 650 | W31: 493.92 | Y31: 123 | AB31: 30.87 | AD31: 723 | AG31: 1370.79 | AH31: 5304.21 | AI31: 987.84 | AK31: 370 | AN31: 56 | AO31: 30.87 | AP31: 6.17 | AQ31: 723 | AS31: 2173.88
G32: 2023-04-01 | H32: 690 | I32: 160 | J32: 5175 | T32: 6025 | U32: 650 | W32: 493.92 | Y32: 123 | AB32: 30.87 | AD32: 723 | AG32: 1370.79 | AH32: 5304.21 | AI32: 987.84 | AK32: 370 | AN32: 56 | AO32: 30.87 | AP32: 6.17 | AQ32: 723 | AS32: 2173.88
G33: 2023-05-01 | H33: 690 | I33: 160 | J33: 5175 | T33: 6025 | U33: 650 | W33: 493.92 | Y33: 123 | AB33: 30.87 | AD33: 723 | AG33: 1370.79 | AH33: 5304.21 | AI33: 987.84 | AK33: 370 | AN33: 56 | AO33: 30.87 | AP33: 6.17 | AQ33: 723 | AS33: 2173.88
G34: 2023-06-01 | H34: 690 | I34: 280 | J34: 5175 | T34: 6145 | U34: 650 | W34: 493.92 | Y34: 123 | AB34: 30.87 | AD34: 723 | AG34: 1370.79 | AH34: 5424.21 | AI34: 987.84 | AK34: 370 | AN34: 56 | AO34: 30.87 | AP34: 6.17 | AQ34: 723 | AS34: 2173.88
G35: 2023-07-01 | H35: 690 | I35: 180 | J35: 5175 | T35: 6045 | U35: 650 | W35: 493.92 | Y35: 123 | AB35: 30.87 | AD35: 723 | AG35: 1370.79 | AH35: 5324.21 | AI35: 987.84 | AK35: 370 | AN35: 56 | AO35: 30.87 | AP35: 6.17 | AQ35: 723 | AS35: 2173.88
G36: 2023-08-01 | H36: 690 | I36: 180 | J36: 5175 | T36: 6045 | U36: 650 | W36: 574.56 | Y36: 126 | AB36: 35.92 | AD36: 723 | AG36: 1459.48 | AH36: 5235.52 | AI36: 1149.12 | AK36: 378 | AN36: 57 | AO36: 35.92 | AP36: 7.21 | AQ36: 723 | AS36: 2350.25
G37: 2023-09-01 | H37: 690 | I37: 180 | J37: 5175 | T37: 6045 | U37: 650 | W37: 504 | Y37: 126 | AB37: 31.5 | AD37: 723 | AG37: 1384.5 | AH37: 5310.5 | AI37: 1008 | AK37: 378 | AN37: 57 | AO37: 31.5 | AP37: 6.3 | AQ37: 723 | AS37: 2203.8
G38: 2023-10-01 | H38: 690 | I38: 180 | J38: 5175 | T38: 6045 | U38: 650 | W38: 504 | Y38: 126 | AB38: 31.5 | AD38: 723 | AG38: 1384.5 | AH38: 5310.5 | AI38: 1008 | AK38: 378 | AN38: 57 | AO38: 31.5 | AP38: 6.3 | AQ38: 723 | AS38: 2203.8
G39: 2023-11-01 | H39: 690 | I39: 180 | J39: 5175 | K39: 3900 | T39: 9945 | U39: 650 | W39: 504 | Y39: 126 | AB39: 31.5 | AD39: 723 | AG39: 1384.5 | AH39: 9210.5 | AI39: 1008 | AK39: 378 | AN39: 57 | AO39: 31.5 | AP39: 6.3 | AQ39: 723 | AS39: 2203.8
G40: 2023-12-01 | H40: 690 | I40: 180 | J40: 5175 | T40: 6045 | U40: 650 | W40: 504 | Y40: 126 | AB40: 31.5 | AD40: 723 | AG40: 1384.5 | AH40: 5310.5 | AI40: 1008 | AK40: 378 | AN40: 57 | AO40: 31.5 | AP40: 6.3 | AQ40: 723 | AS40: 2203.8
G41: 汇总数 | H41: =SUM(H29:H40) -> 8280 | I41: 2160 | J41: 60996 | K41: 3900 | T41: =SUM(T29:T40) -> 75336 | U41: 7800 | W41: =SUM(W29:W40) -> 6048 | Y41: =SUM(Y29:Y40) -> 1491 | AB41: =SUM(AB29:AB40) -> 378.01 | AD41: =SUM(AD29:AD40) -> 8676 | AG41: =SUM(AG29:AG40) -> 16593.01 | AH41: 66542.99 | AI41: 12096 | AK41: =SUM(AK29:AK40) -> 4480 | AN41: =SUM(AN29:AN40) -> 677 | AO41: 378.01 | AP41: 75.6 | AQ41: 8676 | AS41: =SUM(AS29:AS40) -> 26382.61
G42: 月平均 | H42: =H41/12 -> 690 | I42: 180 | J42: 5083 | K42: 325 | T42: =T41/12 -> 6278 | U42: 650 | W42: =W41/12 -> 504 | Y42: =Y41/12 -> 124.25 | AB42: =AB41/12 -> 31.50083333 | AD42: =AD41/12 -> 723 | AG42: =AG41/12 -> 1382.750833 | AH42: 5545.249167 | AI42: 1008 | AK42: =AK41/12 -> 373.3333333 | AN42: =AN41/12 -> 56.41666667 | AO42: 31.50083333 | AP42: 6.3 | AQ42: 723 | AS42: =AS41/12 -> 2198.550833
A43: 3 | B43: 李增琴 | C43: 632125199502190522 | D43: 1995.02 | E43: 国库核算 | F43: 十三级 | G43: 2023-01-01 | H43: 532 | I43: 80 | J43: 3990 | T43: =H43+I43+J43+O43+K43 -> 4602 | U43: 650 | W43: 374.48 | Y43: 94 | AB43: 23.41 | AD43: 552 | AG43: =SUM(W43:AF43) -> 1043.89 | AH43: =T43+U43+V43-AG43 -> 4208.11 | AI43: =W43/0.08*0.16 -> 748.96 | AK43: 281 | AN43: 42 | AO43: =AB43 -> 23.41 | AP43: 4.68 | AQ43: =AD43 -> 552 | AS43: =SUM(AI43:AR43) -> 1652.05
G44: 2023-02-01 | H44: 532 | I44: 80 | J44: 3990 | T44: 4602 | U44: 650 | W44: 374.48 | Y44: 94 | AB44: 23.41 | AD44: 552 | AG44: 1043.89 | AH44: 4208.11 | AI44: 748.96 | AK44: 281 | AN44: 42 | AO44: 23.41 | AP44: 4.68 | AQ44: 552 | AS44: 1652.05
G45: 2023-03-01 | H45: 532 | I45: 80 | J45: 3990 | T45: 4602 | U45: 650 | W45: 374.48 | Y45: 94 | AB45: 23.41 | AD45: 552 | AG45: 1043.89 | AH45: 4208.11 | AI45: 748.96 | AK45: 281 | AN45: 42 | AO45: 23.41 | AP45: 4.68 | AQ45: 552 | AS45: 1652.05
G46: 2023-04-01 | H46: 532 | I46: 80 | J46: 3990 | T46: 4602 | U46: 650 | W46: 374.48 | Y46: 94 | AB46: 23.41 | AD46: 552 | AG46: 1043.89 | AH46: 4208.11 | AI46: 748.96 | AK46: 281 | AN46: 42 | AO46: 23.41 | AP46: 4.68 | AQ46: 552 | AS46: 1652.05
G47: 2023-05-01 | H47: 532 | I47: 80 | J47: 3990 | T47: 4602 | U47: 650 | W47: 374.48 | Y47: 94 | AB47: 23.41 | AD47: 552 | AG47: 1043.89 | AH47: 4208.11 | AI47: 748.96 | AK47: 281 | AN47: 42 | AO47: 23.41 | AP47: 4.68 | AQ47: 552 | AS47: 1652.05
G48: 2023-06-01 | H48: 532 | I48: 200 | J48: 3990 | T48: 4722 | U48: 650 | W48: 374.48 | Y48: 94 | AB48: 23.41 | AD48: 552 | AG48: 1043.89 | AH48: 4328.11 | AI48: 748.96 | AK48: 281 | AN48: 42 | AO48: 23.41 | AP48: 4.68 | AQ48: 552 | AS48: 1652.05
G49: 2023-07-01 | H49: 532 | I49: 100 | J49: 3990 | T49: 4622 | U49: 650 | W49: 374.48 | Y49: 94 | AB49: 23.41 | AD49: 552 | AG49: 1043.89 | AH49: 4228.11 | AI49: 748.96 | AK49: 281 | AN49: 42 | AO49: 23.41 | AP49: 4.68 | AQ49: 552 | AS49: 1652.05
G50: 2023-08-01 | H50: 532 | I50: 100 | J50: 3990 | T50: 4622 | U50: 650 | W50: 499.92 | Y50: 98 | AB50: 31.26 | AD50: 552 | AG50: 1181.18 | AH50: 4090.82 | AI50: 999.84 | AK50: 293 | AN50: 44 | AO50: 31.26 | AP50: 6.44 | AQ50: 552 | AS50: 1926.54
G51: 2023-09-01 | H51: 532 | I51: 100 | J51: 3990 | T51: 4622 | U51: 650 | W51: 390.16 | Y51: 98 | AB51: 24.39 | AD51: 552 | AG51: 1064.55 | AH51: 4207.45 | AI51: 780.32 | AK51: 293 | AN51: 44 | AO51: 24.39 | AP51: 4.9 | AQ51: 552 | AS51: 1698.61
G52: 2023-10-01 | H52: 532 | I52: 100 | J52: 3990 | T52: 4622 | U52: 650 | W52: 390.16 | Y52: 98 | AB52: 24.39 | AD52: 552 | AG52: 1064.55 | AH52: 4207.45 | AI52: 780.32 | AK52: 293 | AN52: 44 | AO52: 24.39 | AP52: 4.9 | AQ52: 552 | AS52: 1698.61
G53: 2023-11-01 | H53: 532 | I53: 100 | J53: 3990 | K53: 3900 | T53: 8522 | U53: 650 | W53: 390.16 | Y53: 98 | AB53: 24.39 | AD53: 552 | AG53: 1064.55 | AH53: 8107.45 | AI53: 780.32 | AK53: 293 | AN53: 44 | AO53: 24.39 | AP53: 4.9 | AQ53: 552 | AS53: 1698.61
G54: 2023-12-01 | H54: 532 | I54: 100 | J54: 3990 | T54: 4622 | U54: 650 | W54: 390.16 | Y54: 98 | AB54: 24.39 | AD54: 552 | AG54: 1064.55 | AH54: 4207.45 | AI54: 780.32 | AK54: 293 | AN54: 44 | AO54: 24.39 | AP54: 4.9 | AQ54: 552 | AS54: 1698.61
G55: 汇总数 | H55: =SUM(H43:H54) -> 6384 | I55: 1200 | J55: 47880 | K55: 3900 | T55: =SUM(T43:T54) -> 59364 | U55: 7800 | W55: =SUM(W43:W54) -> 4681.92 | Y55: =SUM(Y43:Y54) -> 1148 | AB55: =SUM(AB43:AB54) -> 292.69 | AD55: =SUM(AD43:AD54) -> 6624 | AG55: =SUM(AG43:AG54) -> 12746.61 | AH55: 54417.39 | AI55: 9363.84 | AK55: =SUM(AK43:AK54) -> 3432 | AN55: =SUM(AN43:AN54) -> 514 | AO55: 292.69 | AP55: 58.8 | AQ55: 6624 | AS55: =SUM(AS43:AS54) -> 20285.33
G56: 月平均 | H56: =H55/12 -> 532 | I56: 100 | J56: 3990 | K56: 325 | T56: =T55/12 -> 4947 | U56: 650 | W56: =W55/12 -> 390.16 | Y56: =Y55/12 -> 95.66666667 | AB56: =AB55/12 -> 24.39083333 | AD56: =AD55/12 -> 552 | AG56: =AG55/12 -> 1062.2175 | AH56: 4534.7825 | AI56: 780.32 | AK56: =AK55/12 -> 286 | AN56: =AN55/12 -> 42.83333333 | AO56: 24.39083333 | AP56: 4.9 | AQ56: 552 | AS56: =AS55/12 -> 1690.444167
A57: 4 | B57: 马雯 | C57: 632125199309052128 | D57: 1993.09 | E57: 会计核算 | F57: 九级 | G57: 2023-01-01 | H57: 656 | I57: 100 | J57: 4920 | T57: =H57+I57+J57+O57+K57 -> 5676 | U57: 650 | W57: 430.72 | Y57: 108 | AB57: 26.92 | AD57: 681 | AG57: =SUM(W57:AF57) -> 1246.64 | AH57: =T57+U57+V57-AG57 -> 5079.36 | AI57: =W57/0.08*0.16 -> 861.44 | AK57: 323 | AN57: 48 | AO57: =AB57 -> 26.92 | AP57: 5.38 | AQ57: =AD57 -> 681 | AS57: =SUM(AI57:AR57) -> 1945.74
G58: 2023-02-01 | H58: 656 | I58: 100 | J58: 4920 | T58: 5676 | U58: 650 | W58: 430.72 | Y58: 108 | AB58: 26.92 | AD58: 681 | AG58: 1246.64 | AH58: 5079.36 | AI58: 861.44 | AK58: 323 | AN58: 48 | AO58: 26.92 | AP58: 5.38 | AQ58: 681 | AS58: 1945.74
G59: 2023-03-01 | H59: 656 | I59: 100 | J59: 4920 | T59: 5676 | U59: 650 | W59: 430.72 | Y59: 108 | AB59: 26.92 | AD59: 681 | AG59: 1246.64 | AH59: 5079.36 | AI59: 861.44 | AK59: 323 | AN59: 48 | AO59: 26.92 | AP59: 5.38 | AQ59: 681 | AS59: 1945.74
G60: 2023-04-01 | H60: 656 | I60: 100 | J60: 4920 | T60: 5676 | U60: 650 | W60: 430.72 | Y60: 108 | AB60: 26.92 | AD60: 681 | AG60: 1246.64 | AH60: 5079.36 | AI60: 861.44 | AK60: 323 | AN60: 48 | AO60: 26.92 | AP60: 5.38 | AQ60: 681 | AS60: 1945.74
G61: 2023-05-01 | H61: 656 | I61: 100 | J61: 4920 | T61: 5676 | U61: 650 | W61: 430.72 | Y61: 108 | AB61: 26.92 | AD61: 681 | AG61: 1246.64 | AH61: 5079.36 | AI61: 861.44 | AK61: 323 | AN61: 48 | AO61: 26.92 | AP61: 5.38 | AQ61: 681 | AS61: 1945.74
G62: 2023-06-01 | H62: 656 | I62: 220 | J62: 4920 | T62: 5796 | U62: 650 | W62: 430.72 | Y62: 108 | AB62: 26.92 | AD62: 681 | AG62: 1246.64 | AH62: 5199.36 | AI62: 861.44 | AK62: 323 | AN62: 48 | AO62: 26.92 | AP62: 5.38 | AQ62: 681 | AS62: 1945.74
G63: 2023-07-01 | H63: 656 | I63: 120 | J63: 4920 | T63: 5696 | U63: 650 | W63: 430.72 | Y63: 108 | AB63: 26.92 | AD63: 681 | AG63: 1246.64 | AH63: 5099.36 | AI63: 861.44 | AK63: 323 | AN63: 48 | AO63: 26.92 | AP63: 5.38 | AQ63: 681 | AS63: 1945.74
G64: 2023-08-01 | H64: 656 | I64: 120 | J64: 4920 | T64: 5696 | U64: 650 | W64: 880.64 | Y64: 122 | AB64: 55.09 | AD64: 681 | AG64: 1738.73 | AH64: 4607.27 | AI64: 1761.28 | AK64: 365 | AN64: 55 | AO64: 55.09 | AP64: 11.14 | AQ64: 681 | AS64: 2928.51
G65: 2023-09-01 | H65: 656 | I65: 120 | J65: 4920 | T65: 5696 | U65: 650 | W65: 486.96 | Y65: 122 | AB65: 30.44 | AD65: 681 | AG65: 1320.4 | AH65: 5025.6 | AI65: 973.92 | AK65: 365 | AN65: 55 | AO65: 30.44 | AP65: 6.1 | AQ65: 681 | AS65: 2111.46
G66: 2023-10-01 | H66: 656 | I66: 120 | J66: 4920 | T66: 5696 | U66: 650 | W66: 486.96 | Y66: 122 | AB66: 30.44 | AD66: 681 | AG66: 1320.4 | AH66: 5025.6 | AI66: 973.92 | AK66: 365 | AN66: 55 | AO66: 30.44 | AP66: 6.1 | AQ66: 681 | AS66: 2111.46
G67: 2023-11-01 | H67: 656 | I67: 120 | J67: 4920 | K67: 3900 | T67: 9596 | U67: 650 | W67: 486.96 | Y67: 122 | AB67: 30.44 | AD67: 681 | AG67: 1320.4 | AH67: 8925.6 | AI67: 973.92 | AK67: 365 | AN67: 55 | AO67: 30.44 | AP67: 6.1 | AQ67: 681 | AS67: 2111.46
G68: 2023-12-01 | H68: 656 | I68: 120 | J68: 4920 | T68: 5696 | U68: 650 | W68: 486.96 | Y68: 122 | AB68: 30.44 | AD68: 681 | AG68: 1320.4 | AH68: 5025.6 | AI68: 973.92 | AK68: 365 | AN68: 55 | AO68: 30.44 | AP68: 6.1 | AQ68: 681 | AS68: 2111.46
G69: 汇总数 | H69: =SUM(H57:H68) -> 7872 | I69: 1440 | J69: 59040 | K69: 3900 | T69: =SUM(T57:T68) -> 72252 | U69: 7800 | W69: =SUM(W57:W68) -> 5843.52 | Y69: =SUM(Y57:Y68) -> 1366 | AB69: =SUM(AB57:AB68) -> 365.29 | AD69: =SUM(AD57:AD68) -> 8172 | AG69: =SUM(AG57:AG68) -> 15746.81 | AH69: 64305.19 | AI69: 11687.04 | AK69: =SUM(AK57:AK68) -> 4086 | AN69: =SUM(AN57:AN68) -> 611 | AO69: 365.29 | AP69: 73.2 | AQ69: 8172 | AS69: =SUM(AS57:AS68) -> 24994.53
G70: 月平均 | H70: =H69/12 -> 656 | I70: 120 | J70: 4920 | K70: 325 | T70: =T69/12 -> 6021 | U70: 650 | W70: =W69/12 -> 486.96 | Y70: =Y69/12 -> 113.8333333 | AB70: =AB69/12 -> 30.44083333 | AD70: =AD69/12 -> 681 | AG70: =AG69/12 -> 1312.234167 | AH70: 5358.765833 | AI70: 973.92 | AK70: =AK69/12 -> 340.5 | AN70: =AN69/12 -> 50.91666667 | AO70: 30.44083333 | AP70: 6.1 | AQ70: 681 | AS70: =AS69/12 -> 2082.8775
A71: 经办人：李露 | G71: 填报日期：2023年11月24日 | O71: 复核人：方昌明
A73: 填报说明：1. 本表统计涉改人民银行县（市）支行聘用制员工2023年1月至2023年12月全口径工资待遇及相关情况，请经办人、复核人及签字的主要负责人高度重视，确保统计的信息真实性、完整性和准确性。 2. 逐月填写明细。期间退休、离职人员，“汇总数”汇总在职月份领取的工资待遇金额，未计发工资的月份相应金额全部填0。 3. “岗位名称”、“岗位等级”，填写人员岗位名称及岗位等级。 4. “补贴类项目”，填写所有补贴类项目的合计数。 5. “季度/半年度/年度发放项目”，填写县（市）支行非月度发放的绩效类项目，按实际金额填列在发放月份。 6. “其他项目小计”，汇总统计表未能明确具体项目名称的工资待遇项目，在表格列9至列11中列出金额较大的前三项明细，剩余项目求和后计入“其余项目小计”，相应项目应同时提供填报说明，务必不遗漏任何工资待遇发放项目。 7. 全口径应发工资待遇应发项目合计（列13）应与各单位工资总额计划口径相匹配，12月份工资按工资总额计划的实际执行情况填报。 8. 数据勾稽关系：列13=列1+列2+…列8，列8=列9+列10+列11+列12，列26=列16+…+列25，列27=列13+列14+列15-列26，列38=列28+…+列37。 9. “汇总数”，汇总2023年1月至2023年12月期间共12个月，工作人员在职月份领取的工资待遇金额，未计发工资的月份相应金额全部填0。注意：11月26日前报送1-11月各月明细数及1-11月汇总数，12月23日前报送1-12月各月明细数及1-12月汇总数。 10. “月平均”为汇总数除以实际领取在职工资待遇月份数。 11. 联系人： 中国人民银行 人事司 蒋聪 010-66195266 ，汪中冬 010-66195935 ；会计财务司 王韦程 010-66195177 。国家金融监督管理总局 人事教育司 黄宏斌 010-66278742 ；财务会计司 杨格 010-66286527。

Sheet 合同制及劳务派遣 (hidden)
A1: 附件3
A2: 湟源县支行劳动合同制、劳务派遣员工工资待遇（全口径）明细表
A4: 填报单位：人民银行湟源县支行（章） | G4: 市分行： (盖章） | O4: 监管分局： (盖章） | W4: 省分行： (盖章） | AD4: 监管局： (盖章）
A5: 支行主要负责人： （签字） | G5: 市分行主要负责人： （签字） | O5: 监管分局主要负责人： （签字） | W5: 省分行主要负责人： （签字） | AD5: 监管局主要负责人： （签字）
AI6: 单位：元
A7: 序号 | B7: 姓名 | C7: 身 份 证 号 | D7: 出 生 年 月 | E7: 岗位名称 | F7: 填报月份 | G7: 全口径工资待遇项目 | P7: 其他实发待遇项目（如有） | Q7: 工资个人扣款项目 | Z7: 实发待遇 | AA7: 单位缴款项目 | AJ7: 备注
G8: 基本工资 | H8: 考核工资 | I8: 季度/半年度/年度发放项目 | J8: 其他项目小计 | O8: 应发合计 | Q8: 养老保险 | R8: 医疗保险 | S8: 大病、重疾 | T8: 失业保险 | U8: 工会费（如有） | V8: 住房公积金 | W8: 个人所得税 | X8: 其他项目 （具体名称） | Y8: 代扣代缴合计 | AA8: 养老保险 | AB8: 医疗保险 | AC8: 大病、重疾 | AD8: 失业保险 | AE8: 工伤保险 | AF8: 住房公积金 | AG8: 管理费 （劳务派遣） | AH8: 其他项目 （具体名称） | AI8: 单位缴款项目合计
K9: 其他项目1 | L9: 其他项目2 | M9: 其他项目3 | N9: 其余项目小计
A10: 列 | G10: 1 | H10: 2 | I10: 3 | J10: 4=5+6+7+8 | K10: 5 | L10: 6 | M10: 7 | N10: 8 | O10: 9=1+2+3+4 | P10: 10 | Q10: 11 | R10: 12 | S10: 13 | T10: 14 | U10: 15 | V10: 16 | W10: 17 | X10: 18 | Y10: 19=11+…+18 | Z10: 20=9+10-19 | AA10: 21 | AB10: 22 | AC10: 23 | AD10: 24 | AE10: 25 | AF10: 26 | AG10: 27 | AH10: 28 | AI10: 29=21+…+28 | AJ10: 30
A11: 支行劳动合同制员工、劳务派遣员工工资待遇总计 | F11: 汇总数
F12: 2023-01-01
F13: 2023-02-01
F14: 2023-03-01
F15: 2023-04-01
F16: 2023-05-01
F17: 2023-06-01
F18: 2023-07-01
F19: 2023-08-01
F20: 2023-09-01
F21: 2023-10-01
F22: 2023-11-01
F23: 2023-12-01
F24: 汇总数
F25: 月平均
F26: 2023-01-01
F27: 2023-02-01
F28: 2023-03-01
F29: 2023-04-01
F30: 2023-05-01
F31: 2023-06-01
F32: 2023-07-01
F33: 2023-08-01
F34: 2023-09-01
F35: 2023-10-01
F36: 2023-11-01
F37: 2023-12-01
F38: 汇总数
F39: 月平均
A40: 经办人：XX | F40: 填报日期：2023年XX月XX日 | J40: 复核人：XX
A42: 填报说明：1. 本表统计涉改人民银行县（市）支行劳动合同制员工、劳务派遣员工2023年1月至2023年12月全口径工资待遇及相关情况，请经办人、复核人及签字的主要负责人高度重视，确保统计的信息真实性、完整性和准确性。 2. 逐月填写明细。期间退休、离职人员，“汇总数”汇总在职月份领取的工资待遇金额，未计发工资的月份相应金额全部填0。 3. “岗位名称”填写人员所从事的具体岗位名称。 4.“考核工资”指按月发放的与本人工作考核相关的工资（如有）。 5. “季度/半年度/年度发放项目”，填写县（市）支行非月度发放的绩效类项目，按实际金额填列在发放月份。 6. “其他项目小计”，汇总统计表未能明确具体项目名称的工资待遇项目，在表格列5至列7中列出金额较大的前三项明细，剩余项目求和后计入“其余项目小计”，相应项目应同时提供填报说明，务必不遗漏任何工资待遇发放项目。 7. 全口径应发工资待遇应发项目合计（列9）应与各单位工资总额计划口径相匹配，12月份工资按工资总额计划的实际执行情况填报。 8. 数据勾稽关系：列9=列1+列2+列3+列4，列4=列5+列6+列7+列8，列19=列11+…+列18，列20=列9+列10-列19，列29=列21+…+列28。 9. “汇总数”，汇总2023年1月至2023年12月期间共12个月，工作人员在职月份领取的工资待遇金额，未计发工资的月份相应金额全部填0。注意：11月26日前报送1-11月各月明细数及1-11月汇总数，12月23日前报送1-12月各月明细数及1-12月汇总数。 10. “月平均”为汇总数除以实际领取在职工资待遇月份数。 11. 联系人： 中国人民银行 人事司 蒋聪 010-66195266 ，汪中冬 010-66195935 ；会计财务司 王韦程 010-66195177 。国家金融监督管理总局 人事教育司 黄宏斌 010-66278742 ；财务会计司 杨格 010-66286527。

Sheet 拟录用公务员名单
A2: 中国人民银行青海省分支机构2024年度拟录用公务员名单（第一批）
A4: 序号 | B4: 招考单位 | C4: 招考职位 | D4: 职位代码 | E4: 姓名 | F4: 性别 | G4: 准考证号 | H4: 毕业院校 | I4: 学历 | J4: 工作单位
A5: 1 | B5: 中国人民银行青海省分行 | C5: 综合业务部门一级主任科员及以下 | D5: 300110001001 | E5: 李*文 | F5: 男 | G5: 126122010100415 | H5: 吉林财经大学 | I5: 硕士研究生
A6: 2 | B6: 中国人民银行青海省分行 | C6: 综合业务部门一级主任科员及以下 | D6: 300110001001 | E6: 李* | F6: 男 | G6: 126136013301501 | H6: 江西财经大学 | I6: 硕士研究生
A7: 3 | B7: 中国人民银行青海省分行 | C7: 综合业务部门一级主任科员及以下 | D7: 300110001001 | E7: 苏*雯 | F7: 女 | G7: 126163010100416 | H7: 浙江大学 | I7: 硕士研究生
A8: 4 | B8: 中国人民银行青海省分行 | C8: 综合业务部门一级主任科员及以下 | D8: 300110001002 | E8: 郭*耀 | F8: 男 | G8: 126142050200324 | H8: 青海民族大学 | I8: 硕士研究生 | J8: 中国邮政储蓄银行股份有限公司宜昌市分行
A9: 5 | B9: 中国人民银行青海省分行 | C9: 综合业务部门一级主任科员及以下 | D9: 300110001002 | E9: 李*浩 | F9: 男 | G9: 126150011902127 | H9: 青海民族大学 | I9: 硕士研究生 | J9: 中国农业银行重庆江津支行
A10: 6 | B10: 中国人民银行海东市分行 | C10: 综合业务部门一级主任科员及以下 | D10: 300110002001 | E10: 李*瑶 | F10: 女 | G10: 126263010205720 | H10: 中南财经政法大学 | I10: 大学本科
A11: 7 | B11: 中国人民银行海东市分行 | C11: 综合业务部门一级主任科员及以下 | D11: 300110002001 | E11: 马*兰 | F11: 女 | G11: 126263010307007 | H11: 兰州财经大学 | I11: 大学本科
A12: 8 | B12: 中国人民银行海东市分行 | C12: 综合业务部门一级主任科员及以下 | D12: 300110002001 | E12: 马*梅 | F12: 女 | G12: 126263010412519 | H12: 西北政法大学 | I12: 大学本科
A13: 9 | B13: 中国人民银行海东市分行 | C13: 综合业务部门一级主任科员及以下 | D13: 300110002001 | E13: 裴* | F13: 女 | G13: 126263210100918 | H13: 中南林业科技大学 | I13: 大学本科 | J13: 青海高等职业技术学院
A14: 10 | B14: 中国人民银行海东市分行 | C14: 综合业务部门一级主任科员及以下 | D14: 300110002002 | E14: 李* | F14: 女 | G14: 126236250103513 | H14: 江西财经大学 | I14: 大学本科
A15: 11 | B15: 中国人民银行海东市分行 | C15: 综合业务部门一级主任科员及以下 | D15: 300110002002 | E15: 任*桦 | F15: 女 | G15: 126251012408518 | H15: 西南财经大学 | I15: 大学本科
A16: 12 | B16: 中国人民银行海东市分行 | C16: 综合业务部门一级主任科员及以下 | D16: 300110002003 | E16: 李*玮 | F16: 男 | G16: 126263010410601 | H16: 上海财经大学 | I16: 大学本科
A17: 13 | B17: 中国人民银行海东市分行 | C17: 综合业务部门一级主任科员及以下 | D17: 300110002004 | E17: 冶*梅 | F17: 女 | G17: 126263010306919 | H17: 山西财经大学 | I17: 大学本科 | J17: 中国工商银行青海省分行西宁城北支行
A18: 14 | B18: 中国人民银行海西蒙古族藏族自治州分行 | C18: 综合业务部门一级主任科员及以下 | D18: 300110003001 | E18: 谭*萱 | F18: 女 | G18: 126263280100710 | H18: 山东理工大学 | I18: 大学本科
A19: 15 | B19: 中国人民银行海西蒙古族藏族自治州分行 | C19: 综合业务部门一级主任科员及以下 | D19: 300110003002 | E19: 孙* | F19: 女 | G19: 126263010204024 | H19: 广东金融学院 | I19: 大学本科 | J19: 海东市平安区财政局
A20: 16 | B20: 中国人民银行海西蒙古族藏族自治州分行 | C20: 综合业务部门一级主任科员及以下 | D20: 300110003002 | E20: 孟*朕 | F20: 男 | G20: 126263010410612 | H20: 青海大学 | I20: 大学本科 | J20: 太平人寿保险有限公司青海分公司
A21: 17 | B21: 中国人民银行海西蒙古族藏族自治州分行 | C21: 综合业务部门一级主任科员及以下 | D21: 300110003003 | E21: 刘*炜 | F21: 男 | G21: 126261010301810 | H21: 西安财经大学 | I21: 大学本科
A22: 18 | B22: 中国人民银行海南藏族自治州分行 | C22: 综合业务部门一级主任科员及以下 | D22: 300110004001 | E22: 李* | F22: 男 | G22: 126263010412418 | H22: 南昌大学 | I22: 大学本科 | J22: 中国农业发展银行格尔木市支行
A23: 19 | B23: 中国人民银行海南藏族自治州分行 | C23: 综合业务部门一级主任科员及以下 | D23: 300110004002 | E23: 张*恒 | F23: 男 | G23: 126263250100325 | H23: 南京师范大学中北学院 | I23: 大学本科
A24: 20 | B24: 中国人民银行海南藏族自治州分行 | C24: 综合业务部门一级主任科员及以下 | D24: 300110004004 | E24: 赵*文 | F24: 男 | G24: 126263250100320 | H24: 西南财经大学 | I24: 大学本科
A25: 21 | B25: 中国人民银行海北藏族自治州分行 | C25: 综合业务部门一级主任科员及以下 | D25: 300110005001 | E25: 徐* | F25: 男 | G25: 126233030202303 | H25: 浙江大学 | I25: 大学本科
A26: 22 | B26: 中国人民银行海北藏族自治州分行 | C26: 综合业务部门一级主任科员及以下 | D26: 300110005002 | E26: 龚*雪 | F26: 女 | G26: 126251012202912 | H26: 成都理工大学 | I26: 大学本科
A27: 23 | B27: 中国人民银行黄南藏族自治州分行 | C27: 综合业务部门一级主任科员及以下 | D27: 300110006001 | E27: 谈*园 | F27: 女 | G27: 126263010204509 | H27: 中央财经大学 | I27: 大学本科
A28: 24 | B28: 中国人民银行黄南藏族自治州分行 | C28: 综合业务部门一级主任科员及以下 | D28: 300110006001 | E28: 韩*明 | F28: 男 | G28: 126263010205303 | H28: 西北民族大学 | I28: 大学本科
A29: 25 | B29: 中国人民银行黄南藏族自治州分行 | C29: 综合业务部门一级主任科员及以下 | D29: 300110006002 | E29: 朱*亚 | F29: 女 | G29: 126264010700608 | H29: 宁夏大学新华学院 | I29: 大学本科
A30: 26 | B30: 中国人民银行黄南藏族自治州分行 | C30: 综合业务部门一级主任科员及以下 | D30: 300110006003 | E30: 杨*宇 | F30: 男 | G30: 126263010204230 | H30: 山东工商学院 | I30: 大学本科
A31: 27 | B31: 中国人民银行黄南藏族自治州分行 | C31: 综合业务部门一级主任科员及以下 | D31: 300110006004 | E31: 蒲*军 | F31: 男 | G31: 126263230100625 | H31: 南京大学 | I31: 大学本科 | J31: 青海省黄南州同仁市审计局
A32: 28 | B32: 中国人民银行黄南藏族自治州分行 | C32: 综合业务部门一级主任科员及以下 | D32: 300110006005 | E32: 李*东 | F32: 男 | G32: 126263010204723 | H32: 兰州大学 | I32: 大学本科 | J32: 中建三局集团西北有限公司
A33: 29 | B33: 中国人民银行黄南藏族自治州分行 | C33: 综合业务部门一级主任科员及以下 | D33: 300110006005 | E33: 张*佳 | F33: 女 | G33: 126263010409924 | H33: 青海民族大学 | I33: 硕士研究生
A34: 30 | B34: 中国人民银行果洛藏族自治州分行 | C34: 综合业务部门一级主任科员及以下 | D34: 300110007001 | E34: 彭*央宗 | F34: 女 | G34: 126263010309217 | H34: 安徽财经大学 | I34: 大学本科
A35: 31 | B35: 中国人民银行果洛藏族自治州分行 | C35: 综合业务部门一级主任科员及以下 | D35: 300110007002 | E35: 陈*钰 | F35: 男 | G35: 126263010308901 | H35: 长沙理工大学城南学院 | I35: 大学本科
A36: 32 | B36: 中国人民银行果洛藏族自治州分行 | C36: 综合业务部门一级主任科员及以下 | D36: 300110007003 | E36: 叶*霞 | F36: 女 | G36: 126263010308303 | H36: 重庆工商大学 | I36: 大学本科
A37: 33 | B37: 中国人民银行玉树藏族自治州分行 | C37: 综合业务部门一级主任科员及以下 | D37: 300110008001 | E37: 伊* | F37: 女 | G37: 126263270100218 | H37: 青海大学 | I37: 大学本科 | J37: 中国邮政储蓄银行玉树州支行
A38: 34 | B38: 中国人民银行玉树藏族自治州分行 | C38: 综合业务部门一级主任科员及以下 | D38: 300110008002 | E38: 桑*曲乔 | F38: 男 | G38: 126263270100223 | H38: 中央民族大学 | I38: 大学本科
A39: 35 | B39: 中国人民银行玉树藏族自治州分行 | C39: 综合业务部门一级主任科员及以下 | D39: 300110008003 | E39: 谭*秀 | F39: 女 | G39: 126263210100723 | H39: 青海大学昆仑学院 | I39: 大学本科
